{"text_format":"3","workbook":"xlsx","n_sheets":19,"sheets":["汇总","监控 ","报警","巡更","管路","门禁一卡通","停车场","综合布线","计算机网络","电视","室内广播","信息发布","机房","监控中心","计算机网络（室外）","室外广播","室外监控","室外信息发布","综合管路"],"not_rendered":{"defined_names":31},"read":"whole","date_system":"1900"}

{"sheet":"汇总","index":0,"n_rows":26,"n_cols":4,"rows_kept":26,"merged":[[0,0,0,3],[25,0,25,1],[26,0,26,3]]}
["泰和县马市生态文化旅游特色小镇项目-纪念馆智能化工程报价汇总表"]
[{"$nulls":3},"单位：元"]
["序号","系统名称","合计","备注"]
["一","室内"]
[1,"视频监控系统",{"$f":"'监控 '!I37","v":{"v":0,"d":"0.00"}}]
[2,"入侵报警系统",{"$f":"报警!I23","v":{"v":0,"d":"0.00"}}]
[3,"电子巡查",{"$f":"巡更!I12","v":{"v":0,"d":"0.00"}}]
[4,"管路",{"$f":"管路!I19","v":{"v":0,"d":"0.00"}}]
[5,"门禁一卡通系统",{"$f":"门禁一卡通!I27","v":{"v":0,"d":"0.00"}}]
[6,"停车场系统",{"$f":"停车场!I22","v":{"v":0,"d":"0.00"}}]
[7,"综合布线系统",{"$f":"综合布线!I53","v":{"v":0,"d":"0.00"}}]
[8,"计算机网络及无线网络系统",{"$f":"计算机网络!I23","v":{"v":0,"d":"0.00"}}]
[9,"有线电视系统",{"$f":"电视!I23","v":{"v":0,"d":"0.00"}}]
[10,"公共广播及背景音乐系统 ",{"$f":"室内广播!I31","v":{"v":0,"d":"0.00"}}]
[11,"信息导引及发布系统",{"$f":"信息发布!I14","v":{"v":0,"d":"0.00"}}]
[12,"数据中心机房",{"$f":"机房!I62","v":{"v":0,"d":"0.00"}}]
[13,"监控中心机房",{"$f":"监控中心!I29","v":{"v":0,"d":"0.00"}}]
[14,"小计",{"$f":"SUM(C5:C17)","v":{"v":0,"d":"0.00"}}]
["二","室外"]
[1,"室外无线网络覆盖系",{"$f":"'计算机网络（室外）'!I16","v":{"v":0,"d":"0.00"}}]
[2,"室外公共广播系统",{"$f":"室外广播!I12","v":{"v":0,"d":"0.00"}}]
[3,"室外监控覆盖系统",{"$f":"室外监控!I20","v":{"v":0,"d":"0.00"}}]
[4,"室外信息发布系统",{"$f":"室外信息发布!I12","v":{"v":0,"d":"0.00"}}]
[5,"综合管路",{"$f":"综合管路!I12","v":{"v":0,"d":"0.00"}}]
[6,"小计",{"$f":"SUM(C20:C23)","v":{"v":0,"d":"0.00"}}]
["总计：",null,{"$f":"C25+C18","v":{"v":0,"d":"0.00"}}]

{"sheet":"监控 ","index":1,"n_rows":38,"n_cols":10,"rows_kept":38,"merged":[[0,0,0,9],[2,0,3,0],[2,1,3,1],[2,2,3,2],[2,3,3,3],[2,4,3,4],[2,5,3,5],[2,6,2,7],[2,8,3,8],[2,9,3,9],[34,0,34,1],[35,0,35,1],[36,0,36,1],[37,0,37,9]]}
["马家洲红色纪念馆智能化（视频监控系统）"]
[{"$nulls":6},"价格单位：元"]
["序号","工作内容","任务内容描述\n（包括但不限于以下工作内容）","单位","工程量\n(暂估）","不含税综合\n单价","不含税综合单价组成明细",null,"合价","备注"]
[{"$nulls":6},"劳务费","主材费"]
[1,"500万高速球形摄像机","型号：DS-2DE753NJXY-WJA\n1.使用1/1.8英寸500万CMOS传感器；           \n2.最低照度彩色0.05Lux@F1.6；黑白0.01Lux@F1.6；0 Lux with IR；\n3.焦距5.9mm-177mm；视场角69.5°(w)～2.7°(t)；                    \n4.支持30X光学变倍；光圈F1.5-F4.0；\n5.视频编码方式265/H.265/H.264/M-JPEG，主码流最高分辨率2592*1944@18fps；\n6.红外补光距离450米；              \n7.电源 AC24V 3A，独立外接电源适配器，最大功率39W；\n8.音频接口支持1路Line/Mic音频输入、1路音频输出；报警1路输入，1路输出；支持TF卡前端存储，最高128G；\n9.防护等级IP66、TVS 6000V 防雷、防浪涌、防突波；\n10.支持背光补偿和宽动态；\n11.支持多达500个预置位；\n12.支持8条自动扫描路径；\n13.工作温度－40℃～70℃，工作湿度0～95%（无凝结）；\n14.支持智能分析： 8种行为分析（周界、单绊线、双绊线、徘徊、快速移动、停车、物品遗留、丢失）、人群聚集、移动侦测、音视频诊断\n★15.信噪比≥61dB，网络延时不大于100ms，动态范围不小于106dB，照度适应范围不小于140dB，宽动态能力综合得分不小于135（提供公安部型式检验报告加盖厂商公章证明）\n★16.具备较强的网络自适应能力，在丢包率为30%的网络环境下，仍可正常显示监视画面，具备较好的电源适应性，电压在AC24V±50%或DC24V±50%范围内变化时，设备可正常工作（提供公安部型式检验报告加盖厂商公章证明）","台",4,{"$nulls":3},{"$f":"E5*F5","v":0}]
[2,"200万人数统计半球摄像机","型号：DS-2CD712NJXY-WJZ(2.8-12mm)\n1.图像分辨率≥1920×1080，帧率在1~60fps可调\n2.可选2.8mm/4mm/6mm高清镜头\n3.最低照度：彩色≤0.001lx、黑白≤0.0001lx\n4.支持H.265、H.264、M-JPEG编码\n5.支持G.711a、G711u、AAC_LC或ADPCM_D音频编码标准\n6.当环境照度低于一定值时，通过红外灯照射，可基本分辨距离不低于100米处所摄目标轮廓和状态\n7.支持不少于1对音频输入/输出接口和1路报警输入接口\n8.信噪比≥60dB\n9.具有视频分析功能，包括绊线/双绊线、周界入侵、物品滞留、物品移除、目标徘徊、人物奔跑、人脸检测、人数统计、人群聚集、值岗检测、场景变换等\n10.具有视频质量诊断报警功能、声音异常检测告警\n11.支持场景模式，室内、室外、夜间、白天、走廊等场景模式选择\n12.支持DC12V和POE供电，DC12V供电时宽压范围≥±45%\n13.工作温度支持最低温度≤-40℃，最高温度≥70℃\n14.防护等级不低于IP66","台",5,{"$nulls":3},{"$f":"E6*F6","v":0}]
[3,"200万高清室内半球","型号：DS-2CD232NJXY-WJI\n1、具有200万像素 CMOS传感器。 \n2、★内置GPU芯片，内置红外与白光补光灯。（公安部检验报告证明）\n3、★支持白光报警功能，当报警产生时，可触发联动白光闪烁。（公安部检验报告证明）\n4、最低照度彩色：0.0005 lx ，灰度等级不小于11级。\n5、白光补光距离不小于15米，在1920x1080 @ 30fps下，清晰度不小于1100TVL。\n6、需具备区域入侵检测、越界检测、进入区域、离开区域等功能。\n7、需支持DC12V/POE供电。\n8、★同一静止场景相同图像质量下，设备在H.265编码方式时，开启智能编码功能和不开启智能编码相比，码率节约80%。（公安部检验报告证明）","台",36,{"$nulls":3},0]
[4,"200万高清室内筒型枪机","型号：DS-2CD2T2LRW-WJ\n1.具有200万像素 CMOS传感器，红外补光距离不小于110米。\n2.★内置GPU芯片，内置红外与白光补光灯。（公安部检验报告证明）\n3.★支持白光报警功能，当报警产生时，可触发联动声音警报和白光闪烁，白天或夜晚均可输出彩色视频图像。（公安部检验报告证明）\n4.最低照度彩色：0.001 lx，黑白0.0001lx。在1920x1080 @ 25fps下，清晰度不小于1100TVL。\n5.支持H.264、H.265、MJPEG视频编码格式，其中H.264支持Baseline/Main/High Profile。\n6.信噪比不小于59dB，需具不小于105dB宽动态。\n7.摄像机能够在-45~70摄氏度，湿度小于93%环境下稳定工作，不低于IP67防尘防水等级。\n8.同一静止场景相同图像质量下，设备在H.265编码方式时，开启智能编码功能和不开启智能编码相比，码率节约1/2。","台",9,{"$nulls":3},0]
[5,"500万高速球形摄像机","型号：DS-2DE753NJXY-WJA\n1.使用1/1.8英寸500万CMOS传感器；           \n2.最低照度彩色0.05Lux@F1.6；黑白0.01Lux@F1.6；0 Lux with IR；\n3.焦距5.9mm-177mm；视场角69.5°(w)～2.7°(t)；                    \n4.支持30X光学变倍；光圈F1.5-F4.0；\n5.视频编码方式265/H.265/H.264/M-JPEG，主码流最高分辨率2592*1944@18fps；\n6.红外补光距离450米；              \n7.电源 AC24V 3A，独立外接电源适配器，最大功率39W；\n8.音频接口支持1路Line/Mic音频输入、1路音频输出；报警1路输入，1路输出；支持TF卡前端存储，最高128G；\n9.防护等级IP66、TVS 6000V 防雷、防浪涌、防突波；\n10.支持背光补偿和宽动态；\n11.支持多达500个预置位；\n12.支持8条自动扫描路径；\n13.工作温度－40℃～70℃，工作湿度0～95%（无凝结）；\n14.支持智能分析： 8种行为分析（周界、单绊线、双绊线、徘徊、快速移动、停车、物品遗留、丢失）、人群聚集、移动侦测、音视频诊断\n★15.信噪比≥61dB，网络延时不大于100ms，动态范围不小于106dB，照度适应范围不小于140dB，宽动态能力综合得分不小于135（提供公安部型式检验报告加盖厂商公章证明）\n★16.具备较强的网络自适应能力，在丢包率为30%的网络环境下，仍可正常显示监视画面，具备较好的电源适应性，电压在AC24V±50%或DC24V±50%范围内变化时，设备可正常工作（提供公安部型式检验报告加盖厂商公章证明）","台",1,{"$nulls":3},0]
[6,"200万高清室外枪式摄像机","型号：DS-2CD2T27WDA2-L\n1.具有200万像素 CMOS传感器，红外补光距离不小于110米。\n2.★内置GPU芯片，内置红外与白光补光灯。（公安部检验报告证明）\n3.★支持白光报警功能，当报警产生时，可触发联动声音警报和白光闪烁，白天或夜晚均可输出彩色视频图像。（公安部检验报告证明）\n4.最低照度彩色：0.001 lx，黑白0.0001lx。在1920x1080 @ 25fps下，清晰度不小于1100TVL。\n5.支持H.264、H.265、MJPEG视频编码格式，其中H.264支持Baseline/Main/High Profile。\n6.信噪比不小于59dB，需具不小于105dB宽动态。\n7.摄像机能够在-45~70摄氏度，湿度小于93%环境下稳定工作，不低于IP67防尘防水等级。\n8.同一静止场景相同图像质量下，设备在H.265编码方式时，开启智能编码功能和不开启智能编码相比，码率节约1/2。","台",40,{"$nulls":3},0]
[7,"球机电源","AC24V，2A","个",5,{"$nulls":3},0]
[8,"快球支架","型号： DS-1602ZJ\n吸顶安装","个",5,{"$nulls":3},0]
[9,"枪机支架","壁挂安装（定制）","个",49,{"$nulls":3},0]
[10,"室外立杆","4米不锈钢立杆，含地笼和接地装置","根",35,{"$nulls":3},0]
[11,"磁盘阵列（16盘位）","型号:DS-A81016S\n1.支持不少于160路分辨率为1920×1080的视频信号输入 \n2.具备视频入侵检测功能，进入视频警戒状态的设备，在警戒区域内探测到移动目标时，应能启动记录或发出报警信号，警戒区域的大小、位置、灵敏度、区域个数及进入警戒或撤除警戒等功能，均能设置 \n3.设备对重要的数据能够进行备份，支持NTFS文件系统，录像文件支持备份为MP4格式\n4.具备硬盘管理功能，支持不少于16盘位硬盘接入，支持盘组配置、配额配置，能自动识别磁盘容量，可以显示硬盘容量、磁盘组的容量等硬盘信息。  \n5.支持RAID0、RAID1、RAID5、RAID10、RAID6、RAID3、RAID4、RAID50、RAID60，可实现多个硬盘读写同步。支持硬盘热插拔，支持监控级和企业级硬盘组建RAID\n★6.支持IPSAN、NAS存储功能，支持对希捷、西数、东芝等不同品牌的SATA、SAS硬盘混插，≥12级扩展柜级联扩展（提供公安部型式检验报告加盖厂商公章证明）\n★7.支持RAID误操作恢复，当RAID组中某块硬盘被误拔掉之后，60分钟内再插回，该硬盘能恢复到原RAID组中，并进行增量数据恢复（提供公安部型式检验报告加盖厂商公章证明）\n\n","台",2,{"$nulls":3},0]
[12,"4T监控硬盘","1.4000G；7200RPM；128M；SATA ","块",32,{"$nulls":3},0]
[13,"流媒体服务器","型号：TC-RV3220W-L7M\n1.具备负载均衡、集中存储、数据分发、云服务等功能,负责前端设备接入、音视频流转发、报警信息转发、Qos管理、数据存储、回放点播、级联对接；\n2.嵌入式Linux系统；支持私有SDK、Onvif、SIP国网517协议，兼容主流品牌网络视频设备，可接入DVR、IPC、NVR等多种设备，兼容天地伟业交通一体机，实现交通和监控视频流的统管理；\n3.单台服务器支持至少700Mbps码流的高清视频的接入和1.4Gbps码流转发。","台",1,{"$nulls":3},0]
[14,"安防主控管理软件","Infovision iScenic 智慧景区管理平台 ","套",1,{"$nulls":3},0]
[15,"安防主控工作站","H61/I5-3240(3.4G/3M)/2G/500G/DVDRW/1G独立/DOS-PCI/19LED","台",1,{"$nulls":3},0]
[16,"网络键盘","型号：DS-1200K\n1.可控制255台智能网络矩阵；\n2.支持控制VGA/RGB/SDI/DVI/88HD等高清矩阵；\n3.支持255台网络解码器控制；\n4.可直接控制模拟快球、高清标清网络球机；\n5.支持DVR/NVR硬盘录像机控制，兼容主流厂家嵌入式；\n6.飞梭旋钮实现DVR/NVR录像回放和矩阵监点迅速切换；\n7.支持软件BS/CS客户端控制，实现一键抓拍一键录像功能","台",1,{"$nulls":3},0]
[17,"高清解码拼控一体机","型号：DS-B21-WJ\n1.支持不少于1对音频输入/输出接口、16个报警输入接口和8个报警输出接口，支持1个RS485接口和1个复位按键  \n2.★支持不少于16个HDMI接口、16个VGA接口、8个CVBS接口和16个音频输出接口 \n3.支持不少于16个系统预案及快速调取  \n4.支持GB28181、ONVIF标准协议接入设备 \n5.★视频接入分辨率支持不低于：3840×2160@30/25fps；2048×1536@30/25fps；1600×1200@30/25fps；1920×1080@60/50/30/25fps；1280×720@60/50/30/25fps  \n6.★单块解码卡具有不少于2个VGA接口、2个HDMI接口、2个音频输出接口和1个视频输出接口  \n7.★支持H.264、H.265、MPEG4、MJPEG等视频编码格式  \n音频解码支持G.711A、G.711U、AAC、ADPCM音频格式 \n8.★单块解码卡解码能力不低于4路 分辨率3840×2160/10路 分辨率2048×1536/16路 分辨率1920×1080/32路 分辨率1280×720/64路 分辨率704×576  \n音频解码支持G.711A、G.711U、AAC、ADPCM音频格式的解码 \n9.★支持画面分割功能，可分割为1、2、4、6、8、9、10、13、16、20、25、36、40、64个分屏 （以公安部检测报告为准）","台",1,{"$nulls":3},0]
[18,"46寸液晶拼接屏","型号：LFT460P-DH1\n三星原装进口A规液晶面板，拼缝3.5mm，1920*1080分辨率，260W/单元 低功耗，50000小时使用寿命，亮度为700流明，维护费用低，不会灼伤。   ","台",9,{"$nulls":3},0]
[19,"高清嵌入式拼接器","型号：LFT-PJQ\n全嵌入式数字处理单元。输出口:VGA,HDMI,AV; RS232接口控制;自由无限拼接功能。","台",9,{"$nulls":3},0]
[20,"液晶屏支架","2.0冷扎钢板，9屏幕支架，国标（国产定制）","套",1,{"$nulls":3},0]
[21,"大屏辅材","大屏输出线","套",9,{"$nulls":3},0]
[22,"操作台","4工位标准操作台","套",1,{"$nulls":3},0]
[23,"集中电源","DC12V","只",9,{"$nulls":3},0]
[24,"监控室外光交箱","1.名称：室外防水光交箱；\n2.400宽*600高*300厚mm, 采用1.2mm厚Q235工程级冷轧碳钢板，经酸洗淋化防腐蚀防锈处理，永不生锈！标准风扇孔无需打孔，透风孔增加网纱防虫设计，防水箱配置10A漏保空开和10位电源插座各一只；\n3.基础制作安装。","台",9,{"$nulls":3},0]
[25,"1U24LC双工光纤配线架","1.名称 24口光纤配线架\n2.含模块等配件，满配","只",9,{"$nulls":3},0]
[26,"24口RJ45配线架","1.名称 六类网络配线架                             \n2.规格 24位 满配","只",9,{"$nulls":3},0]
[27,"四对六类非屏蔽双绞线","1.名称 6类非屏蔽网线；\n2.规格型号线缆内部带十字线芯；符合UL94V-0等级；符合TIA/EIA 568B、EN50173-1和ISO 11801：2002\n3.敷设方式 综合.","米",6500,{"$nulls":3},0]
[28,"主干电源线","1.名称 电源线\n2.配线形式 综合\n3.型号：BV3*2.5","米",1200,{"$nulls":3},0]
[29,"电源线","1.名称 电源线\n2.配线形式 综合\n3.型号：RVV2*1.0，2.防水","米",2500,{"$nulls":3},0]
[30,"安全防范分系统调试",null,"项",1,{"$nulls":3},0]
["不含税小计",{"$nulls":7},{"$f":"SUM(I5:I34)","v":0}]
["增值税",null,"9%增值税",{"$nulls":5},{"$f":"ROUND(I35*0.09,2)","v":0}]
["合价",{"$nulls":7},{"$f":"I36+I35","v":0}]
["注：本不含税综合单价包括但不限于以下内容：人工费、中小型机械费、材料费、材料的检验试验费、材料的保管费、二次搬运费、模板及脚手架、安全文明施工费用、施工人员食宿和交通、施工人员生活用水电费、成品保护费、夜间施工费、冬雨季施工费、垃圾清理和消纳费用、风险费、管理费用、利润、规费及应支付的保险（不仅限于工伤保险和意外伤害险）等除9%增值税外一切费用。"]

{"sheet":"报警","index":2,"n_rows":24,"n_cols":10,"rows_kept":24,"merged":[[0,0,0,7],[2,0,3,0],[2,1,3,1],[2,2,3,2],[2,3,3,3],[2,4,3,4],[2,5,3,5],[2,6,2,7],[2,8,3,8],[2,9,3,9],[20,0,20,1],[21,0,21,1],[22,0,22,1],[23,0,23,9]]}
["马家洲红色纪念馆智能化（防盗报警系统）"]
[{"$nulls":6},"价格单位：元"]
["序号","工作内容","任务内容描述\n（包括但不限于以下工作内容）","单位","工程量\n(暂估）","不含税综合\n单价","不含税综合单价组成明细",null,"合价","备注"]
[{"$nulls":6},"劳务费","主材费"]
[1,"入侵报警控制器主机","型号：AL-7480\n报警主机自带8个有线防区，可扩展至2048个防区，支持10种防区类型。\n配合软件可实现继电器联动（最多支持接入57600个继电器模块，621600个继电器输出）\n主机支持2000条事件记录，250条CID报告缓存，可扩展打印机功能，实现所有记录实时打印，各种事件无限记录。\n支持17个分控子系统，每个子系统可当作公共子系统，256个设备分区,每个设备可自由分配到各个子系统。每个子系统有6组定时布撤防时间设置功能（共102组定时布撤防时间），每个定时时间周一至周日生效可选，任意组合。\n自带两路总线扩展接口，每条可达1.2Km （RVSP2*0.75mm）最远可扩展到9.6Km，手拉手总线拓扑\n支持TCP/IP、GPRS、PSTN、GSM、RS-232、RS-485等通讯方式，支持TCP/IP、GPRS、RS-232方式报警数据到管理软件（可实现报警推送、远程布撤防、消警、防功能）\n支持8个电话和8个短信号码（报警电话和短信通知、可实现电话远程布撤防），\n支持Contact ID protocol、UDP和RS232协议通讯，Contact ID protocol支持话机复用，解决一条电话线多机使用，保持电话实时畅通。\n支持多种接口输入输出，自带一路防拆接口，一路受控警号（继电器）输出、一路12V/1A辅电输出（支持警号输出、键盘电源、辅助电源防反接和过流保护）、一路外置蓄电池接口（蓄电池电压实时监测，主辅电源可自动切换），4个防区接口，两多功能扩展口，两个RS485通讯口、一个编程键盘接口（可接入编程键盘级打印机）。\n ","台",1,{"$nulls":3},{"$f":"ROUND(E5*F5,2)","v":0}]
[2,"编程键盘","型号：AL-730\n中文LCD液晶总线制控制主机编程键盘。本款中文液晶显示键盘为AL-7480的配套产品，可用于各种编程操作、显示报警信息，在某些场合使用中可配置遥控器。\n支持中文LCD液晶显示外观美观大方\n支持AL-7416、AL-7480、AL-7480E、AL-7016、AL-7424、AL-7480-4E等主机的编程\n支持8个遥控器\n使用密码对主控设备（如AL-7480主机）进行各种编程操作。\n夜光显示：平时自动熄灭，按键时亮起，可在黑暗的环境下正常操作键盘。\n自带一路警号输出（常开）报警时可连接警号，现场发出警报驱吓窃贼。\n内置防拆开关，当键盘受破坏或打开时，自动发出报警。\n中文液晶显示：所有的布撤防、报警、旁路、及相应的防区号都在中文LCD上直观显示。\n背光显示：平时自动熄灭，按键时亮起，可在黑暗的环境下正常操作键盘。\n警号输出：输出常开的开关信号，作为警号输出，报警时可连接警号，现场发出警报驱吓窃贼。\n通讯连接：通过屏蔽双绞线与主控设备（如AL-7480通讯主机）的键盘接口连接。\n防拆开关：内置防拆开关，当键盘受破坏或打开时，自动发出报警。\n","台",1,{"$nulls":3},{"$f":"ROUND(E6*F6,2)","v":0}]
[3,"报警管理工作站","H61/I5-3240(3.4G/3M)/2G/500G/DVDRW/1G独立/DOS-PCI/19LED","台",1,{"$nulls":3},0]
[4,"报警管理软件","型号：AL-2005S\n艾礼安AL-2005S报警综合管理中心软件是联网报警中心的核心配件，可接收多台报警接收机处理报警。该软件运行于WINDOWS操作系统，用户界面友好，安装操作简便，自动化程度高。 AL-2005S报警综合管理中心软件配合艾礼安总线制主机使用\n支持视频联动（报警时联动视频录像、视频抓拍、云台控制等 ）\n支持继电器联动（可最多支持接入57600个继电器模块，621600个继电器输出） \n支持TCP/IP网络接入（240台7416，120台7480，57600台4E、8E主机）\n可通过串口向其他接警软件转发报警信息\n提供完善的数据维护工具，方便的数据备份、恢复\n可控制各类终端报警设备的联动输出\n提供开放协议接口，便于与其他系统方便集成\n自主研发UI界面，界面简洁\n支持百度地图和本地地图\n支持多语言界面的任意修改\n软件开启界面自定义修改，支持屏保\n集成智能全息对射和电子围栏系统\n多级操作管理权限设置\n灵活设置的监控界面\n满足从小型到大型报警中心的需要\n对终端报警主机进行布、撤防操作或定时布、撤防操作\n多媒体操作，语音报告不同类型警情的发生\n多级电子地图显示，并提供报警复位等功能\n防区状态板为用户提供灵活、直观的操作、观察界面\n","套",1,{"$nulls":3},0]
[5,"网络/GSM通讯接口模块","型号：AL-7400W\n主机的网络通信模块","台",1,{"$nulls":3},0]
[6,"打印机","A4激光打印机","台",1,{"$nulls":3},0]
[7,"继电器模块","型号：AL-7016\n多功能联动输出模块是具有网络和总线通讯功能的设备,报警主机可以按预定条件(报警触发等、控制它断开或闭合某一个或多个继电器、控制它点亮或熄灭某一个或多个指示灯），从而达到联动灯光、警号、模拟灯光屏等各种设备的联动控制。 \n● 板内带有16路状态指示灯\n● 支持16路继电器输出以及16路指示灯输出\n● 支持RS485总线通讯或IP网络通讯两种模式\n联网功能： IP网络、RS485总线\n工作电压：DC12 ∽ 15V\n工作电流：静态电流: 250mA, 每增加一个输出增加13mA\n重量： 300g\n尺寸：长x宽x高 （182 x 110 x 46mm）\n工作温度及湿度： -20℃ ∽ +50℃；0-95%湿度\n继电器负荷参数：电压：交直流24V以下，电流：1A以下\n指示灯灯参数：电压：DC1.5-3.0V，电流：10-15mA","台",1,{"$nulls":3},0]
[8,"警灯","型号：AL-103\n声光报警器;声压≥108分贝;电流≤200毫安","台",2,{"$nulls":3},0]
[9,"警号","型号：AL-103\n声光报警器;声压≥108分贝;电流≤200毫安","台",2,{"$nulls":3},0]
[10,"红外微波双鉴控测器","型号：EAP-300T\n被动三鉴红外探测器，微波与被动红外复合探测,并经过模糊逻辑数码(专利)分析, 采用享有专利的全范围精密温度补偿, 杜绝误报漏报,性能远远超出无线微波功能的各种红外探测器。\n◆微波与被动红外复合探测,并经过模糊逻辑数码(专利)分析,排除种种普通探测器无法克服的干扰,只对真人体移动作出报警,杜绝误报漏报,性能远远超出无线微波功能的各种红外探测器\n◆采用享有专利的全范围精密温度补偿,无论环境温度如何变化,探测灵敏度始终一致,没有温度死区(一般探测器在32-40度时灵敏度大幅度下降,或在其他温度区极易误报)\n◆专利的微波自适应调频与线性传播技术,能够滤除电风扇,悬挂物等干扰\n◆抗串扰技术,可以在同一空间安装多个探测器互相不影响,甚至可以两个探测器相对安装\n◆可变成功能拥有最大的灵活性\n产品型号 EAP-300T\n","只",10,{"$nulls":3},0]
[11,"紧急按钮","型号：AL-01A\n八六面板式紧急按钮，;报警输出常开常闭可选。","只",7,{"$nulls":3},0]
[12,"单防区模块","型号：AL-7480-1A\n单防区总线护展区模块。AL-7480-1A单项防区扩展模块是具有总线通讯功能的防区输入设备，通过总线与远距离的探测设备连接；可与AL-7416、AL-7480总线报警系统配套使用。\n◆RS485总线接口\n◆可接入1个常闭NC防区，使用线末电阻监控防止破坏\n◆带有总线通讯保护电路\n◆当所连接的探测设置被非法断开时，会发出报警信息\n◆工作电压：DC9~24V\n◆工作电流：20mA\n◆联网功能：可跟AL－7416和AL－7480通讯设备配合使用\n◆工作温度：-10℃~+50℃\n◆工作湿度：0-85%湿度\n◆尺寸：48x 20 x 12mm（长x宽x厚）","只",17,{"$nulls":3},0]
[13,"电源安装箱","型号：AN-FYX-BX\n【不锈钢防雨箱】 530*390*200mm专用防水箱","台",5,{"$nulls":3},0]
[14,"信号线","RVVP2*1.0；国标","米",1200,{"$nulls":3},0]
[15,"电源线","RVV2*1.0；国标","米",1200,{"$nulls":3},0]
[16,"辅材","配套","批",1,{"$nulls":3},0]
["不含税小计",{"$nulls":7},{"$f":"SUM(I5:I20)","v":0}]
["增值税",null,"9%增值税",{"$nulls":5},{"$f":"ROUND(I21*0.09,2)","v":0}]
["合价",{"$nulls":7},{"$f":"I22+I21","v":0}]
["注：本不含税综合单价包括但不限于以下内容：人工费、中小型机械费、材料费、材料的检验试验费、材料的保管费、二次搬运费、模板及脚手架、安全文明施工费用、施工人员食宿和交通、施工人员生活用水电费、成品保护费、夜间施工费、冬雨季施工费、垃圾清理和消纳费用、风险费、管理费用、利润、规费及应支付的保险（不仅限于工伤保险和意外伤害险）等除9%增值税外一切费用。"]

{"sheet":"巡更","index":3,"n_rows":13,"n_cols":10,"rows_kept":13,"merged":[[0,0,0,9],[2,0,3,0],[2,1,3,1],[2,2,3,2],[2,3,3,3],[2,4,3,4],[2,5,3,5],[2,6,2,7],[2,8,3,8],[2,9,3,9],[9,0,9,1],[10,0,10,1],[11,0,11,1],[12,0,12,9]]}
["马家洲红色纪念馆智能化（电子巡查系统）"]
[{"$nulls":8},"价格单位：元"]
["序号","工作内容","任务内容描述\n（包括但不限于以下工作内容）","单位","工程量\n(暂估）","不含税综合\n单价","不含税综合单价组成明细",null,"合价","备注"]
[{"$nulls":6},"劳务费","主材费"]
[1,"巡更棒","型号：L-3000EF+1\n应用RFID技术自动感应无须接触，一体胶胆设计防水，震，尘等，耐低温超低功耗设计，可存储1万条记录（可扩容）程序设计可具备人为破坏/电池自检/更换时间错误等记忆和记录等功能。\n尺寸：11.5*4.5*2.5cm   重：186g  材质：合金","台",5,{"$nulls":3},{"$f":"ROUND(E5*F5,2)","v":0}]
[2,"通信座","型号：L-3000ET+\n稳定快速下载并传输智能巡检器数据到PC机\n尺寸：10.3*10*3.7 cm    重：200g    材质：合金","只",2,{"$nulls":3},{"$f":"ROUND(E6*F6,2)","v":0}]
[3,"信息钮","型号：ID-EM\n地点钮：聚碳酸脂密封存储芯片的信息钮，内置不可修改的全球唯一的ID码，依据计划地名位置名称在墙体表面。\n尺寸： 0.5Фcm  0.3Фcm  重：3g  材质：聚碳酸脂","只",15,{"$nulls":3},{"$f":"ROUND(E7*F7,2)","v":0}]
[4,"巡更软件","型号：L-A1.0+\n单机软件：操作简单人性化设计依据现场可多种计划查询、分析、浏览、图形分析、打印表格等设置等功能也可加密。","台",1,{"$nulls":3},{"$f":"ROUND(E8*F8,2)","v":0}]
[5,"巡更管理工作站","H61/I5-3240(3.4G/3M)/2G/500G/DVDRW/1G独立/DOS-PCI/19LED","台",1,{"$nulls":3},{"$f":"ROUND(E9*F9,2)","v":0}]
["不含税小计",{"$nulls":7},{"$f":"SUM(I5:I9)","v":0}]
["增值税",null,"9%增值税",{"$nulls":5},{"$f":"ROUND(I10*0.09,2)","v":0}]
["合价",{"$nulls":7},{"$f":"I11+I10","v":0}]
["注：本不含税综合单价包括但不限于以下内容：人工费、中小型机械费、材料费、材料的检验试验费、材料的保管费、二次搬运费、模板及脚手架、安全文明施工费用、施工人员食宿和交通、施工人员生活用水电费、成品保护费、夜间施工费、冬雨季施工费、垃圾清理和消纳费用、风险费、管理费用、利润、规费及应支付的保险（不仅限于工伤保险和意外伤害险）等除9%增值税外一切费用。"]

{"sheet":"管路","index":4,"n_rows":22,"n_cols":10,"rows_kept":22,"merged":[[0,0,0,5],[2,0,3,0],[2,1,3,1],[2,2,3,2],[2,3,3,3],[2,4,3,4],[2,5,3,5],[2,6,2,7],[2,8,3,8],[2,9,3,9],[4,0,4,5],[8,0,8,3],[16,0,16,1],[17,0,17,1],[18,0,18,1],[19,0,19,9]]}
["马家洲红色纪念馆智能化（管路系统）"]
[{"$nulls":7},"价格单位：元"]
["序号","材料名称","规格型号","单位","工程量\n(暂估）","不含税综合\n单价","不含税综合单价组成明细",null,"合价","备注"]
[{"$nulls":6},"劳务费","主材费"]
["（一）弱电系统桥架"]
[1,"镀锌桥架 150*75","150*75","米",380,{"$nulls":3},{"$f":"F6*E6","v":0}]
[2,"镀锌桥架 400*100","400*100","米",280,{"$nulls":3},{"$f":"F7*E7","v":0}]
[3,"桥架支架","配套","公斤",200,{"$nulls":3},0]
["（二）弱电用管"]
[1,"线管 KBG20","KBG20","米",1500,{"$nulls":3},0]
[2,"线管 KBG25","KBG25","米",800,{"$nulls":3},0]
[3,"广播用防火型线管 KBG20","KBG20","米",800,{"$nulls":3},0]
[4,"过线盒",86,"个",400,{"$nulls":3},0]
[5,"金属软管 ∮32","∮32","米",400,{"$nulls":3},0]
[6,"金属软管 ∮20","∮20","米",400,{"$nulls":3},0]
[7,"墙面开槽",null,"m",50,{"$nulls":3},0]
["不含税小计",{"$nulls":7},{"$f":"SUM(I6:I16)","v":0}]
["增值税",null,"9%增值税",{"$nulls":5},{"$f":"ROUND(I17*0.09,2)","v":0}]
["合价",{"$nulls":7},{"$f":"I18+I17","v":0}]
["注：本不含税综合单价包括但不限于以下内容：人工费、中小型机械费、材料费、材料的检验试验费、材料的保管费、二次搬运费、模板及脚手架、安全文明施工费用、施工人员食宿和交通、施工人员生活用水电费、成品保护费、夜间施工费、冬雨季施工费、垃圾清理和消纳费用、风险费、管理费用、利润、规费及应支付的保险（不仅限于工伤保险和意外伤害险）等除9%增值税外一切费用。"]
[" "]
[" "]

{"sheet":"门禁一卡通","index":5,"n_rows":28,"n_cols":10,"rows_kept":28,"merged":[[0,0,0,9],[27,0,27,9]]}
["马家洲红色纪念馆智能化（门禁一卡通系统）"]
[{"$nulls":8},"价格单位：元"]
["序号","工作内容","任务内容描述\n（包括但不限于以下工作内容）","单位","工程量\n(暂估）","不含税综合\n单价","不含税综合单价组成明细",null,"合价","备注"]
[{"$nulls":6},"劳务费","主材费"]
["智能卡应用"]
[1,"智能卡管理工作站","H61/I5-3240(3.4G/3M)/2G/500G/DVDRW/1G独立/DOS-PCI/19LED","台",1,{"$nulls":3},{"$f":"ROUND(E6*F6,2)","v":0}]
[2,"软件狗","HIKVISION","只",1,{"$nulls":3},{"$f":"ROUND(E7*F7,2)","v":0}]
[3,"发卡机","型号：DS-K1F100-D8E\n1.温度： -20℃-60℃\n2.电流： 0-130mA\n3.刷卡距离： <5cm\n4.输出格式： Wiegand 26bit，Wiegand 34bit\n5.通讯方式： USB\n6.支持卡片： Mifare 1卡/ID卡\n7.外型尺寸： 123*95*27mm\n","台",1,{"$nulls":3},0]
[4,"485转换器","传输距离：RS485/422端1200米，RS232端建议不超过15米,工作温度：-20℃—60℃,湿度：相对湿度5%—95%,输入电源：外接5V电源","只",1,{"$nulls":3},0]
[5,"CPU卡","型号：S80\nCPU卡","张",100,{"$nulls":3},0]
["出入口控制系统"]
[1,"软件狗",null,"只",1,{"$nulls":3},0]
[2,"门禁读写器","型号：DS-K1102SK\n1.尺寸：86×86×15（mm）                       \n2.工作电压：DC 12V                            \n3.输出方式：WG26/34                            \n4.读卡距离：3-5CM","个",19,{"$nulls":3},0]
[3,"门禁电控箱，含电源","型号：DS-KAW150-1\n1.稳定的功率变压器，并且具备较高的利用效率，输出功率大，满足读卡器和锁同时正常工作。\n2. 有标准的散热排风设计。全金属设计，良好的散热和屏蔽抗干扰特性。\n3. 箱盖可以拆卸并可以扣装，适合安装空间小的场合。上下都有标准的对接6分的PVC管。箱内有5处葫芦型挂孔；\n4. 电源前端后端都有10A的保险丝，保护电路以防短路损坏，并且方便更换保险丝，对应的保险丝都有指示灯提示。\n5. 箱内设计地线连接点，便于防雷 防静电 防浪涌功能的贯彻。\n6. 波形质量好，无高频纹波干扰。输出电压为DC12V，可局部微调到DC14V。\n","个",19,{"$nulls":3},0]
[4,"磁力锁电源",null,"个",19,{"$nulls":3},0]
[5,"出门按钮","型号：EB01\n1.NO常开型，带夜光指示\n2.材料：铁质中板，图案为激光雕刻，永不掉色，更加耐用\n3.常开NO输出\n4.外型尺寸：86*86*20mm","个",19,{"$nulls":3},0]
[6,"双门磁力锁","型号：DS-K4H258D\n1.锁体尺寸：长500x宽48.5x高25(mm)\n2.吸板尺寸：长180x宽38x高11(mm)\n3.最大拉力：280kgx2(600Lbsx2)直线拉力\n4.输入电压：DC12V或DC24V+10%\n5.工作电流：12V/500mAx2、24V/250mAx2\n6.信号输出：干接点输出，最大承受功率3A，上锁时NO输出，开锁时NC输出\n7.LED显示：红灯(开门状态)、绿灯(上锁状态)\n8.延时上锁时间设置：0/3/6/9秒可调","个",10,{"$nulls":3},0]
[7,"单门磁力锁","型号：DS-K4H258S\n1.锁体尺寸：长250x宽48.5x高25(mm)\n2.吸板尺寸：长180x宽38x高11(mm)\n3.最大拉力：280kgx2(600Lbsx2)直线拉力\n4.输入电压：DC12V或DC24V+10%\n5.工作电流：12V/500mA2、24V/250mA\n6.信号输出：干接点输出，最大承受功率3A，上锁时NO输出，开锁时NC输出\n7.LED显示：红灯(开门状态)、绿灯(上锁状态)\n8.延时上锁时间设置：0/3/6/9秒可调","个",9,{"$nulls":3},0]
[8,"双门门禁控制器","型号：DS-K2602\n1.通讯方式；TCP-IP 免跳线自适应 9600 波特率\n2.存储容量：可存储注册卡10万张，存储记录数10万条\n3.功能描述：可以管2个门的进门刷卡和出门按钮，或者进出门都刷卡\n4.配套电源功率；12VDC 4-7A\n5.电路板功耗；小于100mA\n6.读卡器输入格式；Wigand 26 \n7.可接读卡器数量；4个\n8.可控制门输出；2组\n9.开门延时时间；1-600 秒可调","台",2,{"$nulls":3},0]
[9,"四门门禁控制器","型号：DS-K2604\n1.通讯方式；TCP-IP 免跳线自适应 9600 波特率\n2.存储容量：可存储注册卡10万张，存储记录数10万条\n3.功能描述：可以管4个门的进门刷卡和出门按钮\n4.配套电源功率；12VDC 4-7A\n5.电路板功耗；小于100mA\n6.读卡器输入格式；Wigand 26 \n7.可接读卡器数量；4个\n8.可控制门输出；4组\n9.开门延时时间；1-600 秒可调","台",4,{"$nulls":3},0]
["线缆"]
[1,"读卡器线缆","RVVP4*1.0","米",1200,{"$nulls":3},0]
[2,"开门按钮线缆","RVV4*1.0","米",500,{"$nulls":3},0]
[3,"磁力锁线缆","RVV2*1.0","米",500,{"$nulls":3},0]
["不含税小计",{"$nulls":7},{"$f":"SUM(I6:I24)","v":0}]
["增值税",null,"9%增值税",{"$nulls":5},{"$f":"ROUND(I25*0.09,2)","v":0}]
["合价",{"$nulls":7},{"$f":"I26+I25","v":0}]
["注：本不含税综合单价包括但不限于以下内容：人工费、中小型机械费、材料费、材料的检验试验费、材料的保管费、二次搬运费、模板及脚手架、安全文明施工费用、施工人员食宿和交通、施工人员生活用水电费、成品保护费、夜间施工费、冬雨季施工费、垃圾清理和消纳费用、风险费、管理费用、利润、规费及应支付的保险（不仅限于工伤保险和意外伤害险）等除9%增值税外一切费用。"]

{"sheet":"停车场","index":6,"n_rows":23,"n_cols":10,"rows_kept":23,"merged":[[0,0,0,9],[2,0,3,0],[2,1,3,1],[2,2,3,2],[2,3,3,3],[2,4,3,4],[2,5,3,5],[2,6,2,7],[2,8,3,8],[2,9,3,9],[4,0,4,9],[16,0,16,1],[19,0,19,1],[20,0,20,1],[21,0,21,1],[22,0,22,9]]}
["马家洲红色纪念馆智能化（停车场系统）"]
[{"$nulls":8},"价格单位：元"]
["序号","工作内容","任务内容描述\n（包括但不限于以下工作内容）","单位","工程量\n(暂估）","不含税综合\n单价","不含税综合单价组成明细",null,"合价","备注"]
[{"$nulls":6},"劳务费","主材费"]
["一、停车场管理系统（双入口、双出口）"]
[1,"BS版停车场管理软件","型号IVMS\n1、 支持支持车牌加蓝牙，支持卡加车牌识别\n2、 收费屏平时播放视频画面，可以放企业定会片，车来时切换回显示车牌号、并播报相关语音。\n3、 否支持嵌套（子母停车场）,同时支持地面和地库不同收费规则。\n4、 支持一位多车、多位多车\n5、 支持门禁权限功能,可以对每部车在哪个时间段有权限进出哪个门进行管理。\n6、 支持软件自定义修改语音播报内容\n7、支持软件收费规则二次开发，支持自定义收费规则和收费类型，满足最复杂的定制收费管理模式。\n8、 固定车场接入摄像机数量不限，可灵活选择多个视频展示在界面，可任意拖动画面窗口。\n9、、无牌车可以自动生成车牌号，出场时能自动弹出来通过核对进行收费。\n10、通道达5米且直道不长的情况下支持双摄像机识别；支持同时识别车头和车尾,这种情况主要是防止跟车、套牌。\n11、软件分岗亭端、客户端、服务端，可以装一台电脑也可以装两电脑或者三台电脑可以支持多客户端，即多个部门的人可以查看数据。\n12、支持SQL2000、2005、2008数据库。\n13、可以对超期车辆进行预警，是否可对月租车自动延期\n14、支持名单批量导入功能\n15、支持防砸车功能，系统有计数功能，有效杜绝关信号，不会砸车。\n16、系统具有强大的模糊匹配功能，除7位精确匹配外，还可以按有顺序的六位、连续六位、有顺序的五位、连续五位等来匹配。\n","套",1,{"$nulls":3},{"$f":"ROUND(E6*F6,2)","v":0}]
[2,"直杆数字道闸","型号:SBR DZ100\n产品可靠稳定，一体化机芯设计。挡杆采用特殊高强度铝型材，外贴反光膜，保证夜 间淸晰可见，具有电脑控制、机械摇杆等多种启动方式，便于在停电等特殊情况下使用。\n★运行寿命彡500万次，工作温度-25°C〜+70°C,防护等级IP44,落杆过程带防砸功能, 保护车辆及行人的安全。\n　★具备公安部或省级CMA、CNAS检测机构出具的车牌识别管理系统检验 报告和原厂授权。\n","台",4,{"$nulls":3},{"$f":"ROUND(E7*F7,2)","v":0}]
[3,"车辆检测器","型号:SBR DG100\n灵敏度:高中低可调，频率:高中低可调, 工作电压：220VAC+/-10%；耗能：3VA；反应时间：90ms。","个",8,{"$nulls":3},0]
[4,"遥控系统",null,"个",4,{"$nulls":3},0]
[5,"一体化车牌识别摄像机","型号:SBR DG700\n●号牌识别率：白天≥99.5%； 夜间≥99%\n●号牌捕捉率：白天≥99.9%； 夜间≥99.8%\n●适应车：0-150公里/小时\n●输出信息：车辆特征图像、车牌图像，牌照号码、颜色、类型、通过时间\n●数据接口方式：10/100M  以太网TCP\\IP\n●图像传感器：1/3” CMOS\n●有效像素：130万\n●存储：10万张照片，20000个车牌    ●电子快门：1/1至1/10000秒，22档\n●最佳拍摄范围：3-5米\n●防护等级：IP66\n●工作温度：-25℃～70℃\n●工作湿度：≤ 90%\n●电源电压：直流7-24V，纹波<200mV\n●存贮温度：-50℃~120℃\n●功耗：7W特点：\n●有效识别距离最宽，从2.5米到10米可有效识别，对直道要求低，不挑路况；●识别率达99%以上；●视频自动触发、虚拟线圈触发、压地感及红外触发三种触发方式：\n●自动判断车辆进出方向，同进同出只要切一个地感 \n●自动识别车牌汉字、字母、数字、颜色及类型；\n●实时视频监控及录像；\n●远程调试、维护、升级，远程调整摄像机参数。\n●宽、窄视野皆有较高识别率，允许车牌宽度50-400像素；\n●自动跟踪光线变化，有效抑制顺光和逆光；","块",4,{"$nulls":3},0]
[6,"大照度LED补光灯","技术指标 指标参数\n灯具材质 压铸铝+钢化玻璃\n输入电压 AC 100-240V，50HZ\n电源效率 ≥85%\n功率因数 ≥90%\n功率 15W\n光源类型 进口LED光源\nLED数量 12颗\n光通量 ≥1500LM\n发光效率 120LM/W\n发光角度 近光、远光、全光\n开启方式 常亮或光敏控制\n色温 6000-7000K\n显色指数 ≥80\n工作温度 -25°~ 80°\n工作湿度 10% ~ 90%\n雷击、浪涌防护 差模：2 KV；共模：4 KV\n防护等级 IP67\n产品尺寸 162*92*209mm\n整机重量 1.9KG","块",4,{"$nulls":3},0]
[7,"车牌识别一体机摄像机立柱"," 立柱尺寸：1410*200*149MM补光灯满足昼夜摄像头拍照要求，可清晰判定车辆外形，可自动切换昼夜模式。","台",4,{"$nulls":3},0]
[8,"剩余车位显示屏","★高亮LED点阵显示屏，可多行多字显示，显示内容包含但不限于：车牌号、时间曰期、 收费金额、车辆类型等内容。\n\n★具备公安部或省级CMA、CNAS检测机构出具的车牌识别管理系统检验 报告和原厂授权。\n","块",4,{"$nulls":3},0]
[9,"管理电脑","H61/I3-3240(3.4G/3M)/2G/500G/DVDRW/1G独立/DOS-PCI/19LED","台",1,{"$nulls":3},0]
[10,"软件狗","型号:SBR WB100\nUSB授权加密","套",1,{"$nulls":3},0]
[11,"岗亭","定制标准，包含空调插座等","台",1,{"$nulls":3},0]
["二、线缆"]
[1,"四对六类非屏蔽双绞线","型号:KEG·X6P\n1.名称 6类非屏蔽网线；\n2.规格型号线缆内部带十字线芯；符合UL94V-0等级；符合TIA/EIA 568B、EN50173-1和ISO 11801：2002\n3.敷设方式 综合.","米",4500,{"$nulls":3},0]
[2,"电源线","型号:RVV2*1.0\n1.名称 电源线\n2.配线形式 综合\n3.型号：RVV2*1.0，2.防水","米",3500,{"$nulls":3},0]
["不含税小计",{"$nulls":7},{"$f":"SUM(I6:I16)","v":0}]
["增值税",null,"9%增值税",{"$nulls":5},{"$f":"ROUND(I20*0.09,2)","v":0}]
["合价",{"$nulls":7},{"$f":"I21+I20","v":0}]
["注：本不含税综合单价包括但不限于以下内容：人工费、中小型机械费、材料费、材料的检验试验费、材料的保管费、二次搬运费、模板及脚手架、安全文明施工费用、施工人员食宿和交通、施工人员生活用水电费、成品保护费、夜间施工费、冬雨季施工费、垃圾清理和消纳费用、风险费、管理费用、利润、规费及应支付的保险（不仅限于工伤保险和意外伤害险）等除9%增值税外一切费用。"]

{"sheet":"综合布线","index":7,"n_rows":54,"n_cols":10,"rows_kept":54,"merged":[[0,0,0,9],[2,0,3,0],[2,1,3,1],[2,2,3,2],[2,3,3,3],[2,4,3,4],[2,5,3,5],[2,6,2,7],[2,8,3,8],[2,9,3,9],[4,0,4,2],[20,0,20,2],[22,0,22,2],[35,0,35,2],[41,0,41,2],[50,0,50,1],[51,0,51,1],[52,0,52,1],[53,0,53,9]]}
["马家洲红色纪念馆智能化（综合布线系统）"]
[{"$nulls":8},"价格单位：元"]
["序号","工作内容","任务内容描述\n（包括但不限于以下工作内容）","单位","工程量\n(暂估）","不含税综合\n单价","不含税综合单价组成明细",null,"合价","备注"]
[{"$nulls":6},"劳务费","主材费"]
["工作区子系统"]
[1,"单孔数据（公共网）信息插座","型号：CM-1P\n规格：86 型平面面板\n特征：带防尘盖、电话电脑标记，带有透明标识系统，要求透明标识盖为翻转结构，以方便更换标识条，面板要求与标准RJ45 模块插座配套；\n材料：所有塑料材料应采用ABS材质耐腐塑料，配有标签， UL 94V-0 防火等级；产品符合RoHS环保要求","个",30,{"$nulls":3},{"$f":"ROUND(E6*F6,2)","v":0}]
[2,"单孔TV数据（公共网）信息插座","型号：CM-1TP\n规格：86 型平面面板","个",7,{"$nulls":3},{"$f":"ROUND(E7*F7,2)","v":0}]
[3,"双孔数据（公共网）信息插座","型号：CM-2P\n规格：86 型平面面板","个",4,{"$nulls":3},0]
[4,"双孔（数据+语音）信息插座","型号：CM-2P\n规格：86 型平面面板","个",52,{"$nulls":3},0]
[5,"双孔语音地面插座","型号：TDP\n铜质地插，带地插盒，弹起式","个",1,{"$nulls":3},0]
[6,"双孔数据（公共网）地面插座","型号：TDP\n铜质地插，带地插盒，弹起式","个",5,{"$nulls":3},0]
[7,"双孔（数据+语音）地面插座","型号：TDP\n铜质地插，带地插盒，弹起式","个",3,{"$nulls":3},0]
[8,"单孔数据（设备网）信息插座","型号：CM-1P\n规格：86 型平面面板","个",83,{"$nulls":3},0]
[9,"双孔数据（设备网）信息插座","型号：CM-1P\n规格：86 型平面面板","个",2,{"$nulls":3},0]
[10,"双孔数据（设备网）地面插座","型号：TDP\n铜质地插，带地插盒，弹起式","个",3,{"$nulls":3},0]
[11,"四孔数据（设备网）地面插座","型号：TDP\n铜质地插，带地插盒，弹起式","个",1,{"$nulls":3},0]
[12,"六类非屏蔽RJ45模块","型号：6CP\n产品规格：六类RJ45非屏蔽模块插座，任选T568A、T568B接线方式。","个",208,{"$nulls":3},0]
[13,"电话模块","型号：DP","个",57,{"$nulls":3},0]
[14,"RJ45-RJ11语音跳线","型号：TP1-0200\n2米，规格：UTP 4对标准RJ11至RJ45跳线（CM防火等级）标准：","根",57,{"$nulls":3},0]
[15,"六类非屏蔽RJ45跳线","型号：T6P-0200\n2米规格：UTP 4对标准RJ45至RJ45跳线（CM防火等级）标准：","根",208,{"$nulls":3},0]
["水平子系统"]
[1,"六类4对UTP电缆","型号：X6P\n1.名称 6类非屏蔽网线；\n2.规格型号线缆内部带十字线芯；符合UL94V-0等级；符合TIA/EIA 568B、EN50173-1和ISO 11801：2002\n3.敷设方式 综合.","305米/箱",40,{"$nulls":3},0]
["管理区子系统",{"$nulls":7},0]
[1,"六类24位非屏蔽RJ45配线架","型号：6-24CPJ2\n19英寸一体式，后置扎线架","个",9,{"$nulls":3},0]
[2,"六类非屏蔽RJ45跳线(2米）","型号：T6P-0200\n2米","根",208,{"$nulls":3},0]
[3,"100对机架式110跳线架","型号：TJ-100P\n19英寸机架式设备，含连接块","个",2,{"$nulls":3},0]
[4,"1对110-1对110跳线（2米）","型号：TD2-0200P\n2米","根",57,{"$nulls":3},0]
[6,"24芯机架式光纤配线架","型号：ODP-24G1 \n24芯","个",2,{"$nulls":3},0]
[7,"单模LC万兆光纤尾纤（1米）","型号：LP-SMA21\nOM3单模，长度可定制","根",48,{"$nulls":3},0]
[8,"LC-LC双芯单模光纤耦合器","型号：OM-LP2\nLC-LC","个",48,{"$nulls":3},0]
[9,"双芯单模LC-LC万兆光纤跳线（2米）","型号：L/LP-SMA21\nOM3单模，长度可定制","根",12,{"$nulls":3},0]
[10,"金属理线器（12档）","型号：LJP\n19英寸金属理线器，带盖板，12档","个",9,{"$nulls":3},0]
[11,"110理线器","型号：LJP\n19英寸塑料理线器，金属背板","个",2,{"$nulls":3},0]
[12,"19〞网孔门标准机柜(42U)","型号：GP-42\n600*600*2000，含2块托板，2个风扇，1个电源接线板","台",2,{"$nulls":3},0]
[13,"集合点封堵盒",null,"只",9,{"$nulls":3},0]
["垂直子系统"]
[1,"室外8芯万兆单模光缆","型号：KEG.FJP-4B1c\n常规护套，GYXTW型\n","米",1200,{"$nulls":3},0]
[2,"室内三类大对数 25*2*0.4","型号：KEG·X3P-25B\n25*2*0.4","305米/轴",1,{"$nulls":3},0]
[3,"室内三类大对数 100*2*0.4","型号：KEG·X3P-100B\n100*2*0.4","305米/轴",1,{"$nulls":3},0]
[4,"室内4芯万兆单模光缆","型号：KEG.FJP-4B1d\n常规护套，GJFJV型","米",1600,{"$nulls":3},0]
[5,"室内12芯万兆单模光缆","型号：KEG.FJP-12B1d\n常规护套，GJFJV型","米",400,{"$nulls":3},0]
["设备间子系统（机房）"]
[1,"100对机架式110跳线架","型号：KEG·TJ-100P\n19英寸机架式设备，含连接块","个",1,{"$nulls":3},0]
[2,"1对110-1对110跳线（2米）","型号：KEG·TD2-0200P\n2米","根",57,{"$nulls":3},0]
[3,"48芯机架式光纤配线架","型号：KEG.ODP-48G1 ","个",1,{"$nulls":3},0]
[4,"单模LC万兆光纤尾纤（1米）","型号：KEG.LP-SMA21\nOM3单模，长度可定制","根",48,{"$nulls":3},0]
[5,"LC-LC双芯单模光纤耦合器","型号：KEG.OM-LP2","个",48,{"$nulls":3},0]
[6,"双芯单模LC-LC万兆光纤跳线（2米）","型号：KEG.L/LP-SMA21\nOM3单模，长度可定制","根",12,{"$nulls":3},0]
[7,"110理线器","型号：KEG·LJP\n19英寸塑料理线器，金属背板","个",1,{"$nulls":3},0]
[8,"19〞网孔门标准机柜(42U)","型号：KEG·GP-42\n600*600*2000，含2块托板，2个风扇，1个电源接线板","台",1,{"$nulls":3},0]
["不含税小计",{"$nulls":7},{"$f":"SUM(I6:I50)","v":0}]
["增值税",null,"9%增值税",{"$nulls":5},{"$f":"ROUND(I51*0.09,2)","v":0}]
["合价",{"$nulls":7},{"$f":"I52+I51","v":0}]
["注：本不含税综合单价包括但不限于以下内容：人工费、中小型机械费、材料费、材料的检验试验费、材料的保管费、二次搬运费、模板及脚手架、安全文明施工费用、施工人员食宿和交通、施工人员生活用水电费、成品保护费、夜间施工费、冬雨季施工费、垃圾清理和消纳费用、风险费、管理费用、利润、规费及应支付的保险（不仅限于工伤保险和意外伤害险）等除9%增值税外一切费用。"]

{"sheet":"计算机网络","index":8,"n_rows":24,"n_cols":10,"rows_kept":24,"merged":[[0,0,0,9],[2,0,3,0],[2,1,3,1],[2,2,3,2],[2,3,3,3],[2,4,3,4],[2,5,3,5],[2,6,2,7],[2,8,3,8],[2,9,3,9],[20,0,20,1],[21,0,21,1],[22,0,22,1],[23,0,23,9]]}
["马家洲红色纪念馆智能化（计算机网络）"]
[{"$nulls":8},"价格单位：元"]
["序号","工作内容","任务内容描述\n（包括但不限于以下工作内容）","单位","工程量\n(暂估）","不含税综合\n单价","不含税综合单价组成明细",null,"合价","备注"]
[{"$nulls":6},"劳务费","主材费"]
[1,"公共信息网路由器","型号：RT-MSR3640\n1.支持固化千兆电口≥8个，固化千兆光口≥4个\n2.标准1U机箱，多核非X86架构，提供官网产品说明链接并截图\n3.支持双硬盘插槽，硬盘容量≥1T，硬盘支持可插拔更换\n4.支持1+1冗余电源，整机功耗低于300W\n5.支持内存≥4GB（为防止虚假应标，提供设备界面截图）\n6.支持WEB本地认证方式、Radius认证、微信认证功能。提供设备截图。\n7.支持流量识别保障功能：能够精确识别网络应用，保障关键业务的系统带宽，具备完善的应用协议库，协议识别数量≥1500种。提供官网截图及查询链接。\n8.★支持VPN内流量的可视化监控，提供设备截图\n9.★支持VPN内流量流量控制，提供设备截图\n10URL数据库及应用特征库支持至少5年免费升级，提供原厂声明文件，加盖原厂商公章，另外URL数据库和应用特征库支持远程HTTP自动升级，提供设备界面截图\n11.★ipsec vpn建立完成后能够自动生成拓扑图，便于监控各级单位设备在线状态。为防止虚假应标，提供设备配置界面及效果截图\n12.提供中国信息安全认证中心办法的IT产品信息安全认证证书（ISCCC）复印件","台",1,{"$nulls":3},{"$f":"ROUND(E5*F5,2)","v":0}]
[2,"公共信息网防火墙","\n1.为保证防火墙运行的稳定性和处理能力，要求设备采用非X86架构对各项安全功能进行加速优化处理。\n2.要求固化千兆电口数量≥个；千兆光口数量≥2个；为保障接口稳定性，所投产品必须是固化接口，而非板卡接口。\n3.\"设备最大吞吐量≥4Gbps；设备最大IPS吞吐量≥2.1Gbps；最大并发连接数≥320万；\n每秒新建连接数≥77000；IPSEC VPN吞吐量≥1.3Gbps；\n4.IPSEC VPN隧道数≥2000，设备本身要求自带2000个VPN授权；SSL VPN并发用户数≥300，设备本身要求自带300个VPN授权；\"\n5.入侵检测特征库≥5000种，并提供界面截图\n6.支持基于代理模式、流模式的垃圾邮件检测过滤，并提供功能截图\n7.支持僵尸主机、C&C客户端检测功能，要求提供功能截图\n8.提供中国信息安全测评中心颁发的有效的《国家信息安全测评信息技术产品安全测评证书（EAL3+级别）》复印件；","台",1,{"$nulls":3},{"$f":"ROUND(E6*F6,2)","v":0}]
[3,"公共信息网核心交换机","\n1.名称 核心交换机2. 整机主控引擎插槽≥2个，业务插槽≥6个，本次要求配置双引擎双电源，48个千兆电口，36个千兆光口，8个万兆光口；包括1个机箱；2个电源模块，2个主控模块3. 交换容量≥35T，包转发性能≥14000Mpps4. 支持N:1虚拟化：可将多台物理设备虚拟化为1台逻辑设备5. 支持1：N虚拟化：可将一台物理设备虚拟化为多台逻辑设备，各虚拟交换机间具备独立的转发表项及配置界面，各虚拟交换机的配置/重启互不影响6. 支持“多虚一”与“一虚多”同时使用，彻底实现资源池化7. 支持Port based VLAN、Mac based VLAN、Guest VLAN、Restrict VLAN8. 支持多对一镜像,基于流的镜像，一对多镜像。支持SPAN、RSPAN远程镜像，支持VLAN的镜像9. 支持IPv6静态路由、RIPng、OSPF v3、BGP4+ 等路由协议10. 支持手动隧道，自动隧道，ISATAP，IPv4 over IPv611. 支持Sflow的流量分析功能12. 支持SDN/SDN ready功能\n","台",1,{"$nulls":3},0]
[4,"电源模块","\n70W交流电源模块，必配1块，支持1+1电源冗余","台",1,{"$nulls":3},0]
[5,"公共信息网接入交换机","型号：S5120V2-28P-SI                                    技术参数要求：\n1.交换容量≥336Gbps，转发性能≥51Mpps\n2.固化10/100/1000M以太网端口≥24，固化1G SFP光接口≥4个；整机最大可用千兆口≥28\n3.★支持专门基础网络保护机制，增强设备防攻击能力，即使在受到攻击的情况下，也能保护系统各种服务的正常运行，保持较低的CPU负载，从而保障整个网络的稳定运行,提供第三方权威测试报告\n4.要求所投设备支持1对1、1对多、多对1和基于流的镜像；且支持RSPAN和ERSPAN\n5.★ 要求所投产品支持openflow 1.3协议，出具全球SDN测试认证中心出具的证书\n6.★要求所投设备支持IPv6 Ready第二阶段认证证书","台",7,{"$nulls":3},0]
[6,"公共信息网POE接入交换机","型号：H3C S5120V2-28P-PWR-Li\n技术参数要求：\n1.交换容量≥336Gbps，转发性能≥42Mpps；\n2.固化10/100/1000M以太网端口≥24，固化SFP非复用口≥4个；\n3.要求所投产品支持防雷等级≥6KV\n4.投标产品支持单端口POE输出功率≥60W\n5.★投标产品可通过同一品牌的前端适配器实现常见的AC 24V、DC 12V等规格的非POE终端远程供电，提供所投产品官网截图（含链接）\n6.★投标产品支持面板自带一键查看POE供电状态功能，提供所投产品官网截图（含链接）","台",2,{"$nulls":3},0]
[7,"设备网路由器","\n1.支持固化千兆电口≥8个，固化千兆光口≥4个\n2.标准1U机箱，多核非X86架构，提供官网产品说明链接并截图\n3.支持双硬盘插槽，硬盘容量≥1T，硬盘支持可插拔更换\n4.支持1+1冗余电源，整机功耗低于300W\n5.支持内存≥4GB（为防止虚假应标，提供设备界面截图）\n6.支持WEB本地认证方式、Radius认证、微信认证功能。提供设备截图。\n7.支持流量识别保障功能：能够精确识别网络应用，保障关键业务的系统带宽，具备完善的应用协议库，协议识别数量≥1500种。提供官网截图及查询链接。\n8.★支持VPN内流量的可视化监控，提供设备截图\n9.★支持VPN内流量流量控制，提供设备截图\n10URL数据库及应用特征库支持至少5年免费升级，提供原厂声明文件，加盖原厂商公章，另外URL数据库和应用特征库支持远程HTTP自动升级，提供设备界面截图\n11.★ipsec vpn建立完成后能够自动生成拓扑图，便于监控各级单位设备在线状态。为防止虚假应标，提供设备配置界面及效果截图\n12.提供中国信息安全认证中心办法的IT产品信息安全认证证书（ISCCC）复印件","台",1,{"$nulls":3},0]
[8,"设备网防火墙","\n1.为保证防火墙运行的稳定性和处理能力，要求设备采用非X86架构对各项安全功能进行加速优化处理。\n2.要求固化千兆电口数量≥42个；千兆光口数量≥2个；为保障接口稳定性，所投产品必须是固化接口，而非板卡接口。\n3.\"设备最大吞吐量≥4Gbps；设备最大IPS吞吐量≥2.1Gbps；最大并发连接数≥320万；\n每秒新建连接数≥77000；IPSEC VPN吞吐量≥1.3Gbps；\n4.IPSEC VPN隧道数≥2000，设备本身要求自带2000个VPN授权；SSL VPN并发用户数≥300，设备本身要求自带300个VPN授权；\"\n5.入侵检测特征库≥5000种，并提供界面截图\n6.支持基于代理模式、流模式的垃圾邮件检测过滤，并提供功能截图\n7.支持僵尸主机、C&C客户端检测功能，要求提供功能截图\n8.提供中国信息安全测评中心颁发的有效的《国家信息安全测评信息技术产品安全测评证书（EAL3+级别）》复印件；","台",1,{"$nulls":3},0]
[9,"设备网核心交换机","\n1.名称 核心交换机2. 整机主控引擎插槽≥2个，业务插槽≥6个，本次要求配置双引擎双电源，48个千兆电口，36个千兆光口，8个万兆光口；包括1个机箱；2个电源模块，2个主控模块3. 交换容量≥35T，包转发性能≥14000Mpps4. 支持N:1虚拟化：可将多台物理设备虚拟化为1台逻辑设备5. 支持1：N虚拟化：可将一台物理设备虚拟化为多台逻辑设备，各虚拟交换机间具备独立的转发表项及配置界面，各虚拟交换机的配置/重启互不影响6. 支持“多虚一”与“一虚多”同时使用，彻底实现资源池化7. 支持Port based VLAN、Mac based VLAN、Guest VLAN、Restrict VLAN8. 支持多对一镜像,基于流的镜像，一对多镜像。支持SPAN、RSPAN远程镜像，支持VLAN的镜像9. 支持IPv6静态路由、RIPng、OSPF v3、BGP4+ 等路由协议10. 支持手动隧道，自动隧道，ISATAP，IPv4 over IPv611. 支持Sflow的流量分析功能12. 支持SDN/SDN ready功能\n","台",1,{"$nulls":3},0]
[10,"电源模块","\n70W交流电源模块，必配1块，支持1+1电源冗余","台",1,{"$nulls":3},0]
[11,"设备网POE接入交换机","型号：S5120V2-28P-PWR-Li\n技术参数要求：\n1.交换容量≥336Gbps，转发性能≥42Mpps；\n2.固化10/100/1000M以太网端口≥24，固化SFP非复用口≥4个；\n3.要求所投产品支持防雷等级≥6KV\n4.投标产品支持单端口POE输出功率≥60W\n5.★投标产品可通过同一品牌的前端适配器实现常见的AC 24V、DC 12V等规格的非POE终端远程供电，提供所投产品官网截图（含链接）\n6.★投标产品支持面板自带一键查看POE供电状态功能，提供所投产品官网截图（含链接）","台",6,{"$nulls":3},0]
[12,"设备网8口接入交换机","型号：S1850-10P\n1.最大可用端口≥10个，固化10/100/1000M以太网电口≥8个，100/1000M SFP千兆光接口≥2个\n2.交换容量≥20Gbps\n3.包转发率≥15Mpps\n4.MAC地址表大小≥8K\n5.所投设备具有节能设计，满载工作情况下功耗≤8W，要求提供官网截图。\n6.要求所投产品支持防雷等级≥10KV，要求提供官网截图作为证明。\n7.支持专门针对CPU的保护机制，能够针对发往CPU处理的各种报文进行流量控制和优先级处理，保护交换机在各种环境下稳定工作\n8.支持RLDP，可快速检测链路的通断和光纤链路的单向性，并支持端口下的环路检测功能，\n9.提供工信部设备进网许可证复印件","台",9,{"$nulls":3},0]
[13,"千兆单模光模块","型号：SFP-GE-LX-SM1310\n1000BASE-LX mini GBIC转换模块（1310nm），10km","台",48,{"$nulls":3},0]
[14,"AC控制器","型号：WX2540H\n技术参数要求：\n1.★默认可管理AP数≥32个，最大可支持管理≥200个AP ，802.11转发性能≥8Gbps，提供官网截图\n2.★单台设备最大可配置AP数目≥2K，单台设备最大支持的在线无线用户数目≥6K，提供官网截图\n3.要求设备可配置AP的本地数据转发技术模式\n4.★支持本地认证功能，无需通过外置Protal服务器和Radius服务器认证\n5.支持根据用户需求定制化设计认证页面及用户自定义设计，保留测试权利\n6.支持对非法无线接入点进行探测，并对非法AP进行屏蔽\n7.支持手机短信获取WLAN接入密码实现安全认证\n8.支持访客通过二维码授权的方式接入无线网络 ,保留测试权利\n9.支持实时频谱防护,可视化射频干扰源对无线局域网的性能的影响\n★硬件配置要求：\n1.配置千兆电口≥8，千兆光口≥2；\n2.配置足够数量的AP管理许可","台",1,{"$nulls":3},0]
[15,"接入授权","\nWS系列无线控制器产品专用升级许可证License，每套可支持增加16个普通AP或32个墙面式AP的控制权，支持WS全系列控制器11.x及以上版本使用","套",1,{"$nulls":3},0]
[16,"放装式AP","型号：WA5320-FIT                                        1.支持标准的802.11a/b/g/n/ac/ac wave2 ， 支持MU-MIMO ， 整机最大速率1267Mbps；采用双路双频设计，可支持同时工作在802.11ac Wave2 和802.11n模式，提供官网截图证明\n2.支持物联网模块收发单元，支持蓝牙、RFID、Zigbee 等多种协议，且内置蓝牙、RFID 物联网模块\n3.千兆以太网上联接口≥2 个，同时支持POE；全制式物联网协议扩展端口≥3个，整机RJ45 端口≥5 个，提供官网截图证明\n4.支持胖/瘦AP 两种工作模式的切换，在瘦AP 工作模式时，AP 与控制器之间采用国际标准的CAPWAP 协议通信\n5.能与安全计费管理系统联动，实现准入认证和计费的功能\n6.实配一路蓝牙物联网收发功能（内置或外扩）；实配一路RFID 物联网收发功能（内置或外扩）\n如采用内置方案，需提供官网功能截图证明；如采用外置方案，需提供外扩配件的型号及相关介绍","台",34,{"$nulls":3},0]
["不含税小计",{"$nulls":7},{"$f":"SUM(I5:I20)","v":0}]
["增值税",null,"9%增值税",{"$nulls":5},{"$f":"ROUND(I21*0.09,2)","v":0}]
["合价",{"$nulls":7},{"$f":"I22+I21","v":0}]
["注：本不含税综合单价包括但不限于以下内容：人工费、中小型机械费、材料费、材料的检验试验费、材料的保管费、二次搬运费、模板及脚手架、安全文明施工费用、施工人员食宿和交通、施工人员生活用水电费、成品保护费、夜间施工费、冬雨季施工费、垃圾清理和消纳费用、风险费、管理费用、利润、规费及应支付的保险（不仅限于工伤保险和意外伤害险）等除9%增值税外一切费用。"]

{"sheet":"电视","index":9,"n_rows":24,"n_cols":10,"rows_kept":24,"merged":[[0,0,0,9],[2,0,3,0],[2,1,3,1],[2,2,3,2],[2,3,3,3],[2,4,3,4],[2,5,3,5],[2,6,2,7],[2,8,3,8],[2,9,3,9],[20,0,20,1],[21,0,21,1],[22,0,22,1],[23,0,23,9]]}
["马家洲红色纪念馆智能化（有线电视系统）"]
[{"$nulls":8},"价格单位：元"]
["序号","工作内容","任务内容描述\n（包括但不限于以下工作内容）","单位","工程量\n(暂估）","不含税综合\n单价","不含税综合单价组成明细",null,"合价","备注"]
[{"$nulls":6},"劳务费","主材费"]
[1,"高清解码器","型号：DCH-5200P\n• 支持多种信源输入方式，如DVB-S2/S/C/T、DTMB、ATSC，TS/IP，ASI或DS3/E3（选配）\n• 支持DVB-S2 ISI（Input Stream Identifier,选配）和 DVB-T SFN MIP 直通（选配）\n• 可以在Tuner，ASI和TS/IP三种输入方式中进行相互备份，增强系统稳定性\n• 支持SD/HD MPEG-2和MPEG-4 AVC/H.264标准视频解码\n• 可解码两个音频PID，或内嵌在SDI中直通输出\n• 支持数字音频直通输出（内嵌在SDI/HDMI或AES输出）\n• 内置码流再复用器模块，可将ASI输入、Tuner和TS/IP输入的节目进行再复用\n• 具有2个DVB-CI卡槽，支持市场上主流的CAM大卡\n• 支持BISS1或BISS E音视频解码，BISS解扰后的码流可选择清流或原BISS加扰格式方式输出\n• 支持多种模拟和数字的输出方式，如ASI，CVBS，HDMI，SD/HD-SDI，AES/EBU 数字音频，TS/IP等\n• 可以识别和自动升级动态PMT\n• 支持TELETEXT VBI输出功能，支持WSS、Closed caption功能，支持EBU/DVBSUBTITLE 输出功能\n• TS/IP功能支持UDP/RTP, 单播/组播和SPTS/MPTS（选配）\n• 支持SNMP和HTTP WEB协议，可远程控制，支持PBI自主知识产权的网管软件HDMS控制\n• 可通过网络接口进行软件升级 ，支持USB快速升级功能\n• 具有断电记忆功能\n• 支持信号强度显示，可检测接收到的Eb/No和BER信息","台",1,{"$nulls":3},{"$f":"ROUND(E5*F5,2)","v":0}]
[2,"IPTV数字电视机顶盒",null,"台",7,{"$nulls":3},{"$f":"ROUND(E6*F6,2)","v":0}]
[3,"调制器","型号：PBI-4000MUV\n输出频率 48MHz~870MHz (Ch1~Ch56, Z1~Z43频道连续可调)图像载频准确度 ≤±5KHz (VHF); ≤10KHz (UHF)\n射频输出频率微调范围 最大±4MHz (0.5MHz步进)图像载频输出电平 115dBμV \nRF输出电平调节范围 0 ~ -20dB \n图像/伴音功率比 10~20dB\n连续可调输出阻抗 75Ω \n射频输出端反射损耗 VHF：≥12dB，UHF：≥10dB 带内\n寄生输出抑制比 ≥60dB \n邻频抑制比 ≤-45dB \n中频图像频率 38MHz \n中频伴音载频 31.5MHz \n中频输入，输出阻抗 75Ω \n图像中频输入，输出电平 95dBμV \n","台",1,{"$nulls":3},0]
[4,"混合器","型号：PBI-4016C\n16路无源混合器。它有16个射频输入口，一个混合后的输出口，一个-20dB监测口.5~1000MHz系统设计，频带宽，能满足有线电视上行及下行传输要求","台",1,{"$nulls":3},0]
[5,"机柜","42U","台",1,{"$nulls":3},0]
[6,"放大器","型号：4734EHRP-G\n室内型双向楼栋放大器，反向为通过型或放大型可选。输入电平和斜率均可连续可调。各端口均为75ΩF型插座","只",1,{"$nulls":3},0]
[7,"放大器箱","500X400X150","个",1,{"$nulls":3},0]
[8,"四分配器","型号：2774N\n四分配器","个",2,{"$nulls":3},0]
[9,"二分配器","型号：2772N\n二分配器","个",2,{"$nulls":3},0]
[10,"五分支器","型号：2876N\n五分支器","个",4,{"$nulls":3},0]
[11,"四分支器","型号：2874N\n四分支器","个",4,{"$nulls":3},0]
[12,"二分支器","型号：2872N\n二分支器","个",2,{"$nulls":3},0]
[13,"终端面板","型号：2123K-Z\n电视终端输出口技术指标：系统输出电平：64±4dB,nC/N（载噪比）：>44dB,CTB（复合三阶差拍）：>55dB,CSO（复合二阶失真）：>55dB,HM（交扰调制比）：>46dB","个",7,{"$nulls":3},0]
[14,"终端电阻",null,"批",1,{"$nulls":3},0]
[15,"线缆","型号：SYWV75-9\nSYWV75-9","米",500,{"$nulls":3},0]
[16,"线缆","型号：SYWV75-5\nSYWV75-5","米",800,{"$nulls":3},0]
["不含税小计",{"$nulls":7},{"$f":"SUM(I5:I20)","v":0}]
["增值税",null,"9%增值税",{"$nulls":5},{"$f":"ROUND(I21*0.09,2)","v":0}]
["合价",{"$nulls":7},{"$f":"I22+I21","v":0}]
["注：本不含税综合单价包括但不限于以下内容：人工费、中小型机械费、材料费、材料的检验试验费、材料的保管费、二次搬运费、模板及脚手架、安全文明施工费用、施工人员食宿和交通、施工人员生活用水电费、成品保护费、夜间施工费、冬雨季施工费、垃圾清理和消纳费用、风险费、管理费用、利润、规费及应支付的保险（不仅限于工伤保险和意外伤害险）等除9%增值税外一切费用。"]

{"sheet":"室内广播","index":10,"n_rows":32,"n_cols":10,"rows_kept":32,"merged":[[0,0,0,9],[2,0,3,0],[2,1,3,1],[2,2,3,2],[2,3,3,3],[2,4,3,4],[2,5,3,5],[2,6,2,7],[2,8,3,8],[2,9,3,9],[4,0,4,9],[16,0,16,1],[28,0,28,1],[29,0,29,1],[30,0,30,1],[31,0,31,9]]}
["马家洲红色纪念馆智能化（公共广播及背景音乐系统）"]
[{"$nulls":8},"价格单位：元"]
["序号","工作内容","任务内容描述\n（包括但不限于以下工作内容）","单位","工程量\n(暂估）","不含税综合\n单价","不含税综合单价组成明细",null,"合价","备注"]
[{"$nulls":6},"劳务费","主材费"]
["1、总控制室"]
[1,"IP网络广播工业服务器","型号：RT-9000\n1. 该设备为广播系统专业设计的中央服务器，15英寸超大屏幕尺寸；\n2. 屏幕采用TFT24位真彩色,高灵敏度1024*768分辨率液晶电容式触摸屏，支持多达10点同时触控功能；\n3. 采用工业级工控机机箱设计，机箱采用钢结构，有较高的防磁、防尘、防冲击的能力；\n4. 简单易用的触摸屏操控，负责音频流点播服务、计划任务处理、终端管理和权限管理等功能。管理节目库资源，为所有网络适配器提供定时播放和实时点播媒体服务，响应各网络适配器的播放请求，为各音频工作站提供数据接口服务。\n5. 高性能专用主板设计，双核四线程超低功耗的嵌入式工业级处理器，处理速度更快，运作性能更强，可长时期不断电稳定工作；\n6. 可同时支持4路声卡，支持双显卡，支持HDMI高清输出口；\n7. 主板自带开关机设置，可定时设置开关机功能，用于定时驱动开机运行，实现无人值守功能；\n8. 内置网络服务器软件；开机系统即可自动运行，软件内置管理员模式，开机自动运行原设定模式，需要更改和调整时候，必须通过管理员账号登陆，保证了系统的安全有序。\n9. 嵌入式内置光驱，光驱类型:  CD-ROM,DVD-ROM,，支持刻录功能；\n10. CPU采用英特尔双核酷睿i3-6100高速处理器；\n11. 双核四线程，内置智能节能处理器，高品质全固态电容；\n12. 内置大容量SSD固态硬盘，内置4G内存，最大可扩展32G内存；\n13. 支持内存频率：DDR31333MHz,DDR31600MHz：内置7.1声道高品质RealtekALC887声卡，高保真的线路音频，提供高品质的音频传输。（因产品不断更新，产品会不断升级）；\n14. 软件操作平台 Windows 2003server以上 Windows 系统。\n技术参数：\n内置音频接口：1组；\nUSB接口：4xUSB3.0；4xUSB2.0；\nPS/2：1组；\nVGA接口：1组；\nDVI接口：2组；\nHDMI接口：1组；\nRJ45网络接口：1组；\n音频接口：3x3.5mm接口，3组莲花线接口；\nRS232通信串口：1组；","台",1,{"$nulls":3},{"$f":"ROUND(E6*F6,2)","v":0}]
[2,"双向IP网络系统软件包","型号：RT-9000-CF\n1.运行在IP网络广播系统服务器上，是广播系统的核心控制中心，承载着数字网络广播的正常运行的核心设备；\n2.提供系统管理、用户管理、终端管理、分组管理、故障查询、节目管理、任务管理等多项功能，实现远程分控讲话、分区自由点播、支持单点播放、自动音乐打铃等，是整个系统的核心；\n3.系统通过采集、编码、压缩技术，使各类节目源均不受限制，IP网络广播在不同终端所播出的节目数量亦不受限；\n4.系统配置包括：基本配置、终端配置、用户配置和分组配置四个部分，系统配置的正确与否直接影响系统的正常使用；\n5.可运行在网络上的任意一台电脑上，为广播管理员和广播系统的使用人员提供一个远程操作的平台，使用人员只需要确认远程操作客户端与广播系统服务器的连通，即可通过网络在自已授权范围内自由使用广播系统，无需协调管理员；\n6.支持1000个及以上单播任务或节目传输，支持多台服务器分布式布署与服务器集群，支持节目终端离线推送功能，国内首款支持全新安卓平台控制软件，可支持网络设备对终端进行单独或统一的控制；\n7.可支持WIFI网络扩展兼容安卓系统手机客户端，实现远程管理；\n8.内置实时播放，实时讲话和云端文件上传三大功能；\n9.支持手机即时播放手机内部音频文件，同时支持上传文件到服务器，作为服务器媒体库音频信号，实时讲话能通过手机客户端进行广播寻呼，方便快捷；\n10.支持文字广播：可直接将文字转换为音频文件，通过软件实现对终端的播放；\n11.支持扩展PSTN电话广播，支持短信语音广播；\n12.国内首创外控彩屏功能，采用RJ45连接接口，支持485传输协议，最大传输距离达到300米；\n13.具有一键寻呼键，能主动和指定的对讲中心发起对讲；集成红外线接收模块，能通过红外遥控器进行操作","套",1,{"$nulls":3},{"$f":"ROUND(E7*F7,2)","v":0}]
[3,"数字调谐器","型号：PH-3203A\n1. 1U标准机柜式设计，高亮度动态VFD荧光显示，清晰醒目，微电脑控制，轻触式按键操作，采用快闪存储器；\n2. 自动搜台；可存储40个频道；电台频率自动搜索存储功能，且有断电记忆功能；\n3. 石英锁相环路频率合成器调谐回路技术，接收频率精准无偏移；\n4. 两组接收天线输入：AM接收天线输入；FM接收天线75Ω输入；\n5. 1路音频信号左右声道（L /R）输出；可通过面板按键或红外遥控器控制操作；\n6. 频率范围：AM：522KHz-1602KHz；FM：87.8MHz-107.8MHz；\n7. 天线输入阻抗：灵敏度：AM：63dBuV；FM：15dBuV。","台",1,{"$nulls":3},0]
[4,"数码播放器\n（带光驱、U盘、SD卡）","型号：PH-3202A\n1. 1U标准机柜设计，高度铝合金面板；\n2. 微电脑控制，轻触式按键操作；\n3. 高亮度动态VFD荧光显示，电源指示灯；\n4. 采用进口数码机芯，系统+ESS解码方案，超强纠错功能；\n5. 通讯速度：9600bps；\n6. 自动播放控制，全数码伺服；\n7.兼容DVD、CD、MP3、VCD、HDCD、WAV等多种格式光碟；\n8. 2路音频信号左右声道（L /R）输出；\n9. 1路色差视频输出；\n10. 可外扩U盘和SD卡；","台",1,{"$nulls":3},0]
[5,"广播麦克风（前后奏提示音）","型号：VI-30S\n1. 换能方式：电容式；\n2. 频率响应：40Hz-16KHz；\n3. 输出抗阻：200Ω；\n4. 指向性：心型指向；\n5. 灵敏度：-38dB±2dB；\n6. 供电电源：DC9V/220V；\n7. 拾音距离：20-50cm(参考)；\n8. 特点：带前后奏提示音。","只",1,{"$nulls":3},0]
[6,"前置放大器","型号：PH-3206\n1. 2U标准机柜式设计，具有5路话筒输入，3路信号线路输入，2路紧急线路输入；\n2. 强行切入优先功能；MIC1、2、3、4、5 和2路紧急输入通道均附设有线路辅助输入接口功能；\n3. MIC1、2、3、4和AUX1、2、3可交叉混合输出；\n4. 第5个话筒具有最高优先、强行切入优先功能；\n5. 话筒输入通道和线路输入通道均可独立调校音量，并设有总音量控制旋钮；\n6. 设有高音和低音独立调节；\n7. 具有默音深度调节旋钮和EMC输入增益调节旋钮。","台",1,{"$nulls":3},0]
[7,"IP网络解码终端","型号：RT-8006\n1. 采用3.5英寸全彩色触屏显示屏，全新界面采用字和图形结合的菜单，操作简单易懂；\n2. 采用触屏控制，工业级触摸操作方式，触控手感非常灵敏，图文显示界面，操作状态一目了然；\n3. 支持扩展U盘功能：终端可直接插入U盘，可自由更换数字音频文件，免拆装设备，通过触屏可对U盘文件进行本地播放实现本地扩声（选配）；\n4. 完成网络音频流的同步接收和解码，采样音频硬件编码，具有单向接收及主控单向呼叫功能；\n5. TCP/IP高品质的数字音频传输，音质达到CD级（位速128Kbps）并能播放高音质发烧级别的音频文件（位速320Kbps）；\n6. 支持点播服务器节目内容，实现本地播放；操作简单快捷；4路音频信号输出接口，可同时外接4台功率放大器，输出模拟音频至功放，4路外控电源（内置650W大功率智能电源），定时控制功放电源打开；\n7. 内置高低音调节功能，可对整个设备的高低音进行调节；具有多个等级优先灵敏度调节功能，可自由选择信号优先输入，满足不同的场合；\n8. 无网络信号时自动断开功放电源，进入待机状态，具有编程打开和音频触发打开电源功能，进入待机时间为3-5分钟，避免因音频信号的时间间隔导致播放断续；\n9. 1路线路（AUX）和1路话筒（MIC）输入接口，具有独立的音量和高低音调节，并支持断网寻呼功能，带自动触发功能，当有音频信号进来时候自动触发打开设备供电；\n10. 采用固定静态IP地址，当网络发生改变时地址不会丢失，工作稳定；支持多达1000级以及以上自定义音频优先级默音控制；\n11. 支持安卓手机客户端WIFI点播，支持红外接收，操作遥控器可任意点播节目；\n12. 支持文字广播：可直接将文字转换为音频文件，通过软件实现对终端的播放；\n13. 支持扩展PSTN电话广播，支持短信语音广播；\n14. 提供自动/手动强制电源开关按钮；远程网络信号优先，自动强插，可内置网络交换机模块。","台",1,{"$nulls":3},0]
[8,"IP网络广播壁挂音箱","型号：RT-WA01\n1. 木质壁挂集成网络解码、功放、音箱一体化设计；\n2.木质外壳，高低音防磁喇叭单元，内置2×10W数字功放；\n3.外扩10W/8Ω无源定阻音箱；采用静态IP地址，网络发生改变时地址不会丢失，工作稳定；\n4.支持扩展安卓手机客户端WIFI点播，支持红外接收，操作遥控器可任意点播节目；\n5.IP网络传输音频文件，本地解码，音质达到CD级（位速128Kbps）并能播放高音质发烧级别的音频文件（位速320Kbps）；\n6.支持文字广播：可直接将文字转换为音频文件，通过软件实现对终端的播放；支持扩展PSTN电话广播，支持短信语音广播；支持多达1000级以及以上自定义音频优先级默音控制；","台",1,{"$nulls":3},0]
[9,"触摸式双向对讲呼叫话筒（彩屏，触屏）","型号：RT-8008\n1. 采用7英寸全彩色触屏显示屏，全新界面采用文字和图形结合的菜单，操作简单易懂；\n2. 工业级触摸操作方式，触控手感非常灵敏，图文显示界面，操作状态一目了然；\n3. 终端内置U盘功能可自由更换数字音频文件，通过触屏可对U盘内文件进行本地播放实现本地扩声，同时可实现发送到指定终端播放；\n4. 支持一键呼叫分区，一键呼叫全区广播，支持直接操作呼叫或对讲任意终端；\n5. 支持全双工双向对讲功能，双向终端之间实现两两双向对讲，自带网络回声消除模块,网络延时低于300ms,同时网络回声啸叫彻底抑制；\n6. 支持求助信号铃声、闪屏提示，一键接受求助、对讲功能，支持多种呼叫策略，包括呼叫等待、呼叫转移、无人接听提醒，支持自动接听、手动接听，支持自定义接听提示音，内置会议调度管理功能，支持会议讨论模式；\n7. 内置环境监听功能，可任意监听其他终端，监听距离达到5米；\n8. 一路音频线路输出，3.5mm的标准音频接口，可连接专用话筒，便于扩展非免提通话，保证私密性，一路音频线路输入；\n9. 启动时间小于1秒，内置1路网络硬件音频解码，支持TCP/IP、UDP、IGMP(组播)协议，实现网络化传输16位立体声CD音质的音频信号；\n10. 支持DHCP，兼容路由器、交换机、网桥网关、Modem、Intelnet、2G、3G、4G、组播、单播等任意网络结构；\n11. 支持远程点播功能，支持1000级自定义音频优先级默音控制；\n12. 数字化产品，扩容方便，不受地理位置限制，无需增加机房管理设备，采用共网免线路施工的设计理念，安装简便。\n技术参数\n网络接口：标准RJ45输入；\n支持协议：TCP/IP,UDP,IGMP（组播）；\n音频格式：MP3/MP2；\n传输速率：100Mbps；\n音频模式：16位立体声CD音质；\n显示屏尺寸：7英寸；\n屏幕分辨率：800X480像素；\nMIC输入灵敏度（非平衡）：10mV；\n键盘输入方式：触控标准；\n内接扬声器阻抗及额定功率：4Ω，2W；\n总偕波失真：THD≤1%；\nLINEOUT输出电平：1000mV/470Ω；\n屏幕类型：65K色DGUS屏；\nLINEIN输入灵敏度：350mV；\n整机功耗：≤6W；\n输入直流电源：DC24V；\n输出阻抗及额定功率：32Ω，20mW；\n采样率：8K-48KHz；\n频率响应：80Hz~16KHz；\n信噪比：>68dB；\n尺寸：200x158x163mm。","只",1,{"$nulls":3},0]
[10,"触摸式双向对讲呼叫话筒（彩屏，触屏）","型号：RT-8008\n1. 采用7英寸全彩色触屏显示屏，全新界面采用文字和图形结合的菜单，操作简单易懂；\n2. 工业级触摸操作方式，触控手感非常灵敏，图文显示界面，操作状态一目了然；\n3. 终端内置U盘功能可自由更换数字音频文件，通过触屏可对U盘内文件进行本地播放实现本地扩声，同时可实现发送到指定终端播放；\n4. 支持一键呼叫分区，一键呼叫全区广播，支持直接操作呼叫或对讲任意终端；\n5. 支持全双工双向对讲功能，双向终端之间实现两两双向对讲，自带网络回声消除模块,网络延时低于300ms,同时网络回声啸叫彻底抑制；\n6. 支持求助信号铃声、闪屏提示，一键接受求助、对讲功能，支持多种呼叫策略，包括呼叫等待、呼叫转移、无人接听提醒，支持自动接听、手动接听，支持自定义接听提示音，内置会议调度管理功能，支持会议讨论模式；\n7. 内置环境监听功能，可任意监听其他终端，监听距离达到5米；\n8. 一路音频线路输出，3.5mm的标准音频接口，可连接专用话筒，便于扩展非免提通话，保证私密性，一路音频线路输入；\n9. 启动时间小于1秒，内置1路网络硬件音频解码，支持TCP/IP、UDP、IGMP(组播)协议，实现网络化传输16位立体声CD音质的音频信号；\n10. 支持DHCP，兼容路由器、交换机、网桥网关、Modem、Intelnet、2G、3G、4G、组播、单播等任意网络结构；\n11. 支持远程点播功能，支持1000级自定义音频优先级默音控制；\n12. 数字化产品，扩容方便，不受地理位置限制，无需增加机房管理设备，采用共网免线路施工的设计理念，安装简便。\n技术参数\n网络接口：标准RJ45输入；\n支持协议：TCP/IP,UDP,IGMP（组播）；\n音频格式：MP3/MP2；\n传输速率：100Mbps；\n音频模式：16位立体声CD音质；\n显示屏尺寸：7英寸；\n屏幕分辨率：800X480像素；\nMIC输入灵敏度（非平衡）：10mV；\n键盘输入方式：触控标准；\n内接扬声器阻抗及额定功率：4Ω，2W；\n总偕波失真：THD≤1%；\nLINEOUT输出电平：1000mV/470Ω；\n屏幕类型：65K色DGUS屏；\nLINEIN输入灵敏度：350mV；\n整机功耗：≤6W；\n输入直流电源：DC24V；\n输出阻抗及额定功率：32Ω，20mW；\n采样率：8K-48KHz；\n频率响应：80Hz~16KHz；\n信噪比：>68dB；\n尺寸：200x158x163mm。","只",1,{"$nulls":3},0]
[11,"16路网络报警主机","型号：RT-8030\n1. 带16路网络报警输入及4路网络报警输出；\n2. 19英寸标准机架式，2U高度，拉丝面板设计；\n3. 采用固定静态的IP地址，当网络发生改变时地址不会丢失，工作稳定；\n4. 远程网络信号优先，自动强插；嵌入式系统，可长期工作；\n5. 配合IP网络广播系统使用，消防路数随意扩展；\n6. 可根据不同地点不同警源设置相应报警铃声，警灾一听了然；\n7. 硬件音频解码；采样音频硬件编码；\n8. 带4路控制输出接口，控制喷水、电源开关等其它消防设备；\n9. 16路消防信号输入对应16路电平指示，有信号输入，相应指示灯亮。\n技术参数：\n网络接口：音频输入及控制RJ45网口1个，配置口RS232；\n断电断网自动重启恢复时间：小于1秒；\n网络协议：ARP、IP、UDP、TCP、ICMP、IGMP、支持组播接收音频数据，支持跨网段跨路由配置；\n网络延时：文件播放：小于50ms，实时对讲：小于150ms；\n音频位率：8Kbps-320Kbps自适应；\n频率响应：20Hz-20KHz；\n信噪比：≥90dB。","台",1,{"$nulls":3},0]
["2、前端"]
[1,"IP网络解码终端","型号：RT-8006\n1. 采用3.5英寸全彩色触屏显示屏，全新界面采用字和图形结合的菜单，操作简单易懂；\n2. 采用触屏控制，工业级触摸操作方式，触控手感非常灵敏，图文显示界面，操作状态一目了然；\n3. 支持扩展U盘功能：终端可直接插入U盘，可自由更换数字音频文件，免拆装设备，通过触屏可对U盘文件进行本地播放实现本地扩声（选配）；\n4. 完成网络音频流的同步接收和解码，采样音频硬件编码，具有单向接收及主控单向呼叫功能；\n5. TCP/IP高品质的数字音频传输，音质达到CD级（位速128Kbps）并能播放高音质发烧级别的音频文件（位速320Kbps）；\n6. 支持点播服务器节目内容，实现本地播放；操作简单快捷；4路音频信号输出接口，可同时外接4台功率放大器，输出模拟音频至功放，4路外控电源（内置650W大功率智能电源），定时控制功放电源打开；\n7. 内置高低音调节功能，可对整个设备的高低音进行调节；具有多个等级优先灵敏度调节功能，可自由选择信号优先输入，满足不同的场合；\n8. 无网络信号时自动断开功放电源，进入待机状态，具有编程打开和音频触发打开电源功能，进入待机时间为3-5分钟，避免因音频信号的时间间隔导致播放断续；\n9. 1路线路（AUX）和1路话筒（MIC）输入接口，具有独立的音量和高低音调节，并支持断网寻呼功能，带自动触发功能，当有音频信号进来时候自动触发打开设备供电；\n10. 采用固定静态IP地址，当网络发生改变时地址不会丢失，工作稳定；支持多达1000级以及以上自定义音频优先级默音控制；\n11. 支持安卓手机客户端WIFI点播，支持红外接收，操作遥控器可任意点播节目；\n12. 支持文字广播：可直接将文字转换为音频文件，通过软件实现对终端的播放；\n13. 支持扩展PSTN电话广播，支持短信语音广播；\n14. 提供自动/手动强制电源开关按钮；远程网络信号优先，自动强插，可内置网络交换机模块。","台",5,{"$nulls":3},0]
[2,"合并式功率放大器(70W)","型号：TS-070\n1. 带前置及功率放大，报警音频信号优先输入功能；\n2. 带电平指示功能，自动检测输入信号强弱；\n3. 2路线路输入AUX1，AUX2，1路辅助输出，3路话筒输入，第1路话筒MIC1具强切默音功能，具有最高优先权；\n4. 1路报警强插音源输入，报警输入EMC IN具有第二高优先权，当有报警音频输入时自动优先播放报警音乐；\n5. 通道优先功能：MIC1>EMC IN >MIC2，AUX1，AUX2，MIC2 LINEIN，MIC3 LINE IN ，70V、100V定压输出，4Ω-16Ω定阻输出；备有链接口，便于链接下一台功放，级联不失真；\n6. 设有总音量调节旋钮，可控制机器总音量输出；各输入通道独立音量控制，具高、低音音调控制；\n7. 由前往后强制风冷，50℃时加速抽风，90℃强制保护并告警；\n8. 具有短路、过载、过热、饱和失真、直流输出等保护功能，保护的同时设备自动断开输出；独立的启动保护线路，避免开机瞬间启动电流对设备的损害；\n9. 带压限电路，限制输入信号过大，高效放大电路，输出功率强劲有力，独立的静噪音线路处理。\n技术参数：\n输出功率：70W；\n输出电压：70V、100V or 4-16Ω；\n输入灵敏度：MINC:600Ω 300mv AUX:15KΩ不平衡；\n输出灵敏度：600Ω 1V （0dB）；\n信噪比：MIC：＞70 AUX：＞80；\n频率响应：80Hz-18KHz；\n总谐波失真：<0.8%；\n产品尺寸（mm）： 480×90×305。","台",2,{"$nulls":3},0]
[3,"合并式功率放大器(130W)","型号：TS-130\n1. 带前置及功率放大，报警音频信号优先输入功能；\n2. 带电平指示功能，自动检测输入信号强弱；\n3. 2路线路输入AUX1，AUX2，1路辅助输出，3路话筒输入，第1路话筒MIC1具强切默音功能，具有最高优先权；\n4. 1路报警强插音源输入，报警输入EMC IN具有第二高优先权，当有报警音频输入时自动优先播放报警音乐；\n5. 通道优先功能：MIC1>EMC IN >MIC2，AUX1，AUX2，MIC2 LINEIN，MIC3 LINE IN ，70V、100V定压输出，4Ω-16Ω定阻输出；备有链接口，便于链接下一台功放，级联不失真；\n6. 设有总音量调节旋钮，可控制机器总音量输出；各输入通道独立音量控制，具高、低音音调控制；\n7. 由前往后强制风冷，50℃时加速抽风，90℃强制保护并告警；\n8. 具有短路、过载、过热、饱和失真、直流输出等保护功能，保护的同时设备自动断开输出；独立的启动保护线路，避免开机瞬间启动电流对设备的损害；\n9. 带压限电路，限制输入信号过大，高效放大电路，输出功率强劲有力，独立的静噪音线路处理。\n技术参数：\n输出功率：130W；\n输出电压：70V、100V or 4-16Ω；\n输入灵敏度：MINC:600Ω 300mv AUX:15KΩ不平衡；\n输出灵敏度：600Ω 1V （0dB）；\n信噪比：MIC：＞70 AUX：＞80；\n频率响应：80Hz-18KHz；\n总谐波失真：<0.8%；\n产品尺寸（mm）： 480×90×305。","台",1,{"$nulls":3},0]
[4,"合并式广播功放(260W)","型号：TS-260\n1. 带前置及功率放大，报警音频信号优先输入功能；\n2. 带电平指示功能，自动检测输入信号强弱；\n3. 2路线路输入AUX1，AUX2，1路辅助输出，3路话筒输入，第1路话筒MIC1具强切默音功能，具有最高优先权；\n4. 1路报警强插音源输入，报警输入EMC IN具有第二高优先权，当有报警音频输入时自动优先播放报警音乐；\n5. 通道优先功能：MIC1>EMC IN >MIC2，AUX1，AUX2，MIC2 LINEIN，MIC3 LINE IN ，70V、100V定压输出，4Ω-16Ω定阻输出；备有链接口，便于链接下一台功放，级联不失真；\n6. 设有总音量调节旋钮，可控制机器总音量输出；各输入通道独立音量控制，具高、低音音调控制；\n7. 由前往后强制风冷，50℃时加速抽风，90℃强制保护并告警；\n8. 具有短路、过载、过热、饱和失真、直流输出等保护功能，保护的同时设备自动断开输出；独立的启动保护线路，避免开机瞬间启动电流对设备的损害；\n9. 带压限电路，限制输入信号过大，高效放大电路，输出功率强劲有力，独立的静噪音线路处理。\n技术参数：\n输出功率：260W；\n输出电压：70V、100V or 4-16Ω；\n输入灵敏度：MINC:600Ω 300mv AUX:15KΩ不平衡；\n输出灵敏度：600Ω 1V （0dB）；\n信噪比：MIC：＞70 AUX：＞80；\n频率响应：80Hz-18KHz；\n总谐波失真：<0.8%；\n产品尺寸（mm）： 480×90×305。","台",1,{"$nulls":3},0]
[5,"合并式广播功放(360W)","型号：TS-360\n1. 带前置及功率放大，报警音频信号优先输入功能；\n2. 带电平指示功能，自动检测输入信号强弱；\n3. 2路线路输入AUX1，AUX2，1路辅助输出，3路话筒输入，第1路话筒MIC1具强切默音功能，具有最高优先权；\n4. 1路报警强插音源输入，报警输入EMC IN具有第二高优先权，当有报警音频输入时自动优先播放报警音乐；\n5. 通道优先功能：MIC1>EMC IN >MIC2，AUX1，AUX2，MIC2 LINEIN，MIC3 LINE IN ，70V、100V定压输出，4Ω-16Ω定阻输出；备有链接口，便于链接下一台功放，级联不失真；\n6. 设有总音量调节旋钮，可控制机器总音量输出；各输入通道独立音量控制，具高、低音音调控制；\n7. 由前往后强制风冷，50℃时加速抽风，90℃强制保护并告警；\n8. 具有短路、过载、过热、饱和失真、直流输出等保护功能，保护的同时设备自动断开输出；独立的启动保护线路，避免开机瞬间启动电流对设备的损害；\n9. 带压限电路，限制输入信号过大，高效放大电路，输出功率强劲有力，独立的静噪音线路处理。\n技术参数：\n输出功率：360W；\n输出电压：70V、100V or 4-16Ω；\n输入灵敏度：MINC:600Ω 300mv AUX:15KΩ不平衡；\n输出灵敏度：600Ω 1V （0dB）；\n信噪比：MIC：＞70 AUX：＞80；\n频率响应：80Hz-18KHz；\n总谐波失真：<0.8%；\n产品尺寸（mm）： 480×90×435。","台",1,{"$nulls":3},0]
[6,"吸顶喇叭（5\"，额定功率:3W/6W）","型号：TK-105\n1. 额定功率:3W/6W；\n2. 最大功率:6W；\n3. 输入电压:70V/100V；\n4. 灵敏度:91dB；\n5. 频率响应:110Hz-18KHz；\n6. 最大声压级:92dB；\n7. 尺寸:200×60mm；\n8. 开孔尺寸:170mm；\n9. 安装方式:活动夹；\n10. 单元:5.25\"×1；\n11. 材料:IRON。","只",36,{"$nulls":3},0]
[7,"消防吸顶喇叭（6\"，额定功率:3W）","型号：TK-F60\n1. 额定功率:3W；\n2. 最大功率:6W；\n3. 输入电压:70V/100V；\n4. 灵敏度:97dB；\n5. 频率响应:100Hz-18KHz；\n6. 最大声压级:97dB；\n7. 尺寸:198×100mm；\n8. 开孔尺寸:160mm；\n9. 安装方式:活动夹；\n10. 单元:6\"×1；\n11. 材料:ABS。","只",4,{"$nulls":3},0]
[8,"草坪音箱（石头型）","型号：TQ-802A\n1. 额定功率:20W；\n2. 最大功率:30W；\n3. 输入电压70V/100V；\n4. 灵敏度:98dB；\n5. 频率响应:80Hz-16KHz；\n6. 最大声压级:97dB；\n7. 尺寸:320×270×270mm；\n8. 安装方式:膨胀螺丝；\n9. 单元:6(1/2)\"防水同轴×1；\n10. 防护等级:IP66；\n11. 材料:有机玻璃。","只",17,{"$nulls":3},0]
[9,"消防型音量调节器","型号：VI-120\n1. 额定功率:120W；\n2. 音控方式:变压器；\n3. 尺寸:87×87×69mm；\n4. 材料:ABS。","只",1,{"$nulls":3},0]
[10,"消防型音量调节器","型号：VI-60\n1. 额定功率:60W,；\n2. 音控方式:变压器；\n3. 尺寸:87×87×69mm；\n4. 材料:ABS。","只",1,{"$nulls":3},0]
[11,"广播线ZRRVS2*1.5","ZRRVS2*1.5","米",2800,{"$nulls":3},0]
["不含税小计",{"$nulls":7},{"$f":"SUM(I6:I27)","v":0}]
["增值税",null,"9%增值税",{"$nulls":5},{"$f":"ROUND(I29*0.09,2)","v":0}]
["合价",{"$nulls":7},{"$f":"I30+I29","v":0}]
["注：本不含税综合单价包括但不限于以下内容：人工费、中小型机械费、材料费、材料的检验试验费、材料的保管费、二次搬运费、模板及脚手架、安全文明施工费用、施工人员食宿和交通、施工人员生活用水电费、成品保护费、夜间施工费、冬雨季施工费、垃圾清理和消纳费用、风险费、管理费用、利润、规费及应支付的保险（不仅限于工伤保险和意外伤害险）等除9%增值税外一切费用。"]

{"sheet":"信息发布","index":11,"n_rows":15,"n_cols":10,"rows_kept":15,"merged":[[0,0,0,9],[2,0,3,0],[2,1,3,1],[2,2,3,2],[2,3,3,3],[2,4,3,4],[2,5,3,5],[2,6,2,7],[2,8,3,8],[2,9,3,9],[11,0,11,1],[12,0,12,1],[13,0,13,1],[14,0,14,9]]}
["马家洲红色纪念馆智能化（信息导引及发布系统）"]
[{"$nulls":8},"价格单位：元"]
["序号","工作内容","任务内容描述\n（包括但不限于以下工作内容）","单位","工程量\n(暂估）","不含税综合\n单价","不含税综合单价组成明细",null,"合价","备注"]
[{"$nulls":6},"劳务费","主材费"]
[1,"采编管理工作站","H61/I5-3240(3.4G/3M)/2G/500G/DVDRW/1G独立/DOS-PCI/19LED","台",1,{"$nulls":3},{"$f":"ROUND(E5*F5,2)","v":0}]
[2,"多媒体信息播放控制软件","型号：LFT V1.0\n支持节目任意编排、节目管理、节目审核等，远程集中统一管理前端多媒体播放器,可以对显示器，触摸一体机进行远程开关机、定时开关机，支持播放视频，PPT，图片等多种多媒体格式","套",1,{"$nulls":3},{"$f":"ROUND(E6*F6,2)","v":0}]
[3,"播放端软件","型号：LFT\n播放音/视频文件、视频流文件、图片、文字、实时文字、实时图片、数字时钟、天气预报等多媒体信息、直播有线电视信号","套",1,{"$nulls":3},0]
[4,"43寸信息发布屏（壁挂式）","型号：LFT420M\n屏幕尺寸 43英寸 屏幕类别 A+级屏 屏幕分辨率 全高清（1920x1080） 亮度 800-1000流明 屏幕比例 16:9 刷屏率 60Hz\n","台",4,{"$nulls":3},0]
[5,"49寸立式触摸查询一体机（K型）","型号：LFT490P-DH2\n采用49LG显示屏 ，采用49寸红外触摸屏， 触摸分辨率：4096*4096，触摸屏寿命：单点5000万次，可视角度：左右视角/178°   上下视角/178°，屏幕比例 16：9 ， 内置专业触控主板。","台",10,{"$nulls":3},0]
[6,"高清播放器","多媒体播放器，顶级设计、高温、高湿下稳定运行、全高清播放、工业级嵌入式结构,全铝机身外框等.   工业处理器：双核1.8Hz低功耗CPU；  工业主板：X86工控平台 ， 硬盘容量: 32G工业固态硬盘，工业缓存：DDR 2GB RAM；网络接口：集成100\\1000M以太网卡                             （配套）","台",1,{"$nulls":3},0]
[7,"信息发布LED屏","型号：LFT-SC25\nP2.5全彩LED发布大屏，含支架，控制电脑、发送卡等设备，壁挂安装","平方米",14,{"$nulls":3},0]
["不含税小计",{"$nulls":7},{"$f":"SUM(I5:I11)","v":0}]
["增值税",null,"9%增值税",{"$nulls":5},{"$f":"ROUND(I12*0.09,2)","v":0}]
["合价",{"$nulls":7},{"$f":"I13+I12","v":0}]
["注：本不含税综合单价包括但不限于以下内容：人工费、中小型机械费、材料费、材料的检验试验费、材料的保管费、二次搬运费、模板及脚手架、安全文明施工费用、施工人员食宿和交通、施工人员生活用水电费、成品保护费、夜间施工费、冬雨季施工费、垃圾清理和消纳费用、风险费、管理费用、利润、规费及应支付的保险（不仅限于工伤保险和意外伤害险）等除9%增值税外一切费用。"]

{"sheet":"机房","index":12,"n_rows":63,"n_cols":10,"rows_kept":63,"merged":[[0,0,0,9],[2,0,3,0],[2,1,3,1],[2,2,3,2],[2,3,3,3],[2,4,3,4],[2,5,3,5],[2,6,2,7],[2,8,3,8],[2,9,3,9],[12,0,12,1],[27,0,27,1],[33,0,33,1],[59,0,59,1],[60,0,60,1],[61,0,61,1],[62,0,62,9]]}
["马家洲红色纪念馆智能化（数据中心机房）"]
[{"$nulls":8},"价格单位：元"]
["序号","工作内容","任务内容描述\n（包括但不限于以下工作内容）","单位","工程量\n(暂估）","不含税综合\n单价","不含税综合单价组成明细",null,"合价","备注"]
[{"$nulls":6},"劳务费","主材费"]
["一","地面工程"]
[1,"全钢防静电架空活动地板（包含所有施工内容）","600*600*35","㎡",48,{"$nulls":3},{"$f":"ROUND(E6*F6,2)","v":0}]
[2,"通风地板（包含踢脚线）","600*600","㎡",2,{"$nulls":3},{"$f":"ROUND(E7*F7,2)","v":0}]
["二","墙柱面工程"]
[1,"彩钢板贴面","12mm厚单面彩钢板内衬石膏板","㎡",112,{"$nulls":3},0]
[2,"轻钢龙骨","C75","㎡",112,{"$nulls":3},0]
["三","门窗工程",{"$nulls":6},0]
[1,"甲级钢质防火门","双开、1500*2200；耐火时间≥2H，含闭门器、顺位器、防火门锁、门框等五金配件","套",1,{"$nulls":3},0]
["机 房 供 配 电 系 统"]
[1,"精密空调配电柜","400*800*1200","台",1,{"$nulls":3},0]
[2,"UPS输入配电柜","400*800*1200","台",1,{"$nulls":3},0]
[3,"UPS1输出配电柜","400*800*1200","台",1,{"$nulls":3},0]
[4,"配电列头柜","600*1000*2000","台",1,{"$nulls":3},0]
[9,"市电节能格栅灯盘","600*600, 3*18W","套",6,{"$nulls":3},0]
[10,"UPS节能格栅灯盘","600*600, 3*18W","套",2,{"$nulls":3},0]
[11,"安全出口指示灯",null,"套",1,{"$nulls":3},0]
[12,"机柜","600*800*2000","台",8,{"$nulls":3},0]
[13,"工业连接器","16A/2P，一体化外壳结构，带电缆紧固件和密封件","套",2,{"$nulls":3},0]
[14,"万用孔PDU（电源分配单元）","16A\\8位，含4个万用插孔和4个IEC C13 插孔","套",2,{"$nulls":3},0]
[15,"小电器-86型开关（","双联单控板把开关","个",2,{"$nulls":3},0]
[16,"底盒",null,"个",2,{"$nulls":3},0]
[17,"强电插座",null,"个",6,{"$nulls":3},0]
[18,"底盒",null,"个",6,{"$nulls":3},0]
["机 房 防 雷 接 地 系 统"]
[1,"一级电源防雷器","ASD-420/B80-4P","套",1,{"$nulls":3},0]
[2,"二级电源防雷器","ASD-420/B40-4P","套",1,{"$nulls":3},0]
[2,"三级电源防雷器","ASD-420/B20-4P","套",2,{"$nulls":3},0]
[3,"铜排带","30*3","米",20,{"$nulls":3},0]
[4,"绝缘端子",null,"付",15,{"$nulls":3},0]
["UPS 系 统"]
[1,"不间断电源（ups）","型号：40KVA\n三进三出纯在线双变换式产品，支持380/400/415V，50/60Hz电网体系，提供最佳的供电质量与负载保护。\n输入功率因数高达0.99，输入谐波电流小于3%，整机效率高达95%，绿色环保，高效节能。\n丰富的选件：防尘网、SNMP网络通信卡、防雷模块、电池温度补偿器、手机短信报警器。\nDSP 全数字化控制，实现了整流、逆变、充电、放电各个功率变换环节全部数字化控制。\n超宽输入电压与频率范围，适应恶劣电网环境，适应各种燃油发电机接入。\n智能化系统自诊断方案，丰富的故障记录，大容量的历史记录存储空间。\n友好的人机界面，配置大屏幕液晶与控制键盘，信息量富。\n系统内所有风扇均采取冗余设计，极大地提高了系统的可靠性。\n超强的负载适应性，超强的过载与短路能力。\n智能化电池管理方案，延长电池使用寿命。\n数字化环流控制技术，并机可靠性极高。\n子系统采用模块化设计，便于现场维护。\n面板配置EPO紧急关机按键。\n所有电路板均采用三防工艺。\n","台",1,{"$nulls":3},0]
[2,"后备电池(后备2小时)","型号：12V100AH\n1、自放电率低。\n2、容量充足。\n3、使用温度范围宽\n4、密封性能好。\n5、导电性好。\n6、充电接受能力强。\n7、12V100AH\n","节",90,{"$nulls":3},0]
[3,"电池柜","定制","套",3,{"$nulls":3},0]
["机 房 精 密 空 调 系 统"]
[1,"精密空调","总冷量：≥17.0kW，显冷量: ≥15.5kW\n上送风，全正面维护\n室内风机采用节能高效的EC风机\n空调风量: L≥5000m3/h\n配套节能高效EC风机，机外余压：20~300pa可调，压缩机数量：1个\n噪音：室内≤58dB\n★应具有先进的微处理控制器，产品具有国家版权局的精密空调控制系统主控软件的证书，并提供相关证书，以保证产品采用的软件版权\n★为防止噪音污染，要求空调机组具有静音证书，提供厂家盖章证明证书。\n★在设计要求的室内、外组的安装正、负高差或水平距离条件下，机房专用空调机组能在较高效率下可靠运行，具有机房空调专有的管路高落差联接管证书，提供厂家盖章证明证书。\n空调设备厂家须提供CNAS国家认证实验室，提供厂家盖章证明证书","台",1,{"$nulls":3},{"$f":"ROUND(E39*F39,2)","v":0}]
[2,"室外机支架","配套（国产）","套",1,{"$nulls":3},0]
[3,"铜管","配套（国产）","米",10,{"$nulls":3},0]
["消 防 报 警 及 气 体 灭 火 系 统"]
["A","气体灭火系统"]
[1,"120L(单瓶)","贮存压力2.5MPa、气瓶规格120L、单瓶组箱体1只、尺寸（mm）550*540*1800、虹吸管、容器阀、压力表各1只、电磁启动器、压力信号发生器1只、不锈钢连接软管1支、箱体喷头1只;接线柱1只。","套",1,{"$nulls":3},0]
[2,"灭火药剂","HFC-227ea  灭火剂无色无味气体，不含溴和氯元素，不破坏臭氧，洁净、符合环保要求","Kg",120,{"$nulls":3},0]
[3,"机械式泄压口","机械式、灭火系统启动喷洒灭火剂瞬间保护区内压力增大、动作压力1000±50pa、安装开孔（mm）420*410，泄压装置动作分流部分压力，保护防护区内设备和四周维护结构、有效泄压面积0.12m2","套",1,{"$nulls":3},0]
["B","火灾自动报警及联动控制系统部分"]
[1,"点型光电感烟火灾探测器","总线24V无极性、监视电流≤0.8mA、报警电流≤1.8mA、报警确认灯：红色，巡检闪烁，报警常亮；环境温度：-10℃~50℃；对不同材质燃烧后产生的白烟或黑烟均可响应。稳定性高、抗灰尘附着、抗电磁干扰、抗腐蚀、抗环境温度影响能力强，底座安装","只",2,{"$nulls":3},0]
[2,"点型感温火灾探测器（A2R)","总线24V无极性、监视电流≤0.8mA、报警电流≤1.8mA、报警确认灯：红色，巡检闪烁，报警常亮；环境温度：-10℃~50℃；稳定性高、抗灰尘附着、抗电磁干扰、抗腐蚀、抗环境温度影响能力强，底座安装","只",2,{"$nulls":3},0]
[3,"探测器底座",null,"只",4,{"$nulls":3},0]
[4,"火灾声光警报器","信号总线电源：24V 允许范围：16~28V、电源总线电压：DC24V 允许范围：DC20~28V；工作电流：总线监视电流≤0.8mA 总线动作电流≤6.0mA 电源监视电流≤10mA 电源动作电流≤160mA；环境温度-10~50℃、相对湿度≤95%；设置在保护区通道的内、外用于提醒机房管理人员及时疏散，启动时闪烁并伴有刺激强度的连续声响","只",1,{"$nulls":3},0]
[5,"编码器",null,"只",1,{"$nulls":3},0]
[6,"紧急启停按钮","信号总线电压：24V 允许范围：16~28V、电源总线电压：DC24V 允许范围：DC20~28V、工作电流：信号总线监视电流≤1mA 电源总线监视电流≤2mA 信号总线动作电流≤2mA 电源总线动作电流≤25mA温度：-10~50℃ 相对湿度≤95%灭火剂喷放时，安装在保护区通道外的放气指示灯呈频闪工作，提醒保护区外的人员不要进入保护区","只",1,{"$nulls":3},0]
[7,"手自动转换盒","气体灭火控制器手动/自动工况切换","只",2,{"$nulls":3},0]
[8,"火灾声警报器","电压：24V、单个探测器报警时动作，提醒管理人员确认火灾情况","只",1,{"$nulls":3},0]
[9,"气体释放警报器","设置于保护区出入、应急通道口外侧，在确认需要启动气体灭火系统的时启用；工作电压：总线24V,允许范围：16~28V、监视电流：≤0.8mA 报警电流≤10mA；环境温度-10~50℃、相对湿度≤95%","只",1,{"$nulls":3},0]
[10,"总线隔离模块","总线故障隔离","套",1,{"$nulls":3},0]
[11,"输入/输出模块","工作电压：总线24V 电压电压：DC24V；监视电流：总线电流≤1mA 电源电流≤5mA；动作电流：总线电流≤3mA 电源电流≤20mA； 稳定性高，抗干扰能力强；可以接收被监视设备动作后提供的常开无源触点信号，输入模块报警时确认灯闪亮；.电子编码方式。可通过专用电子编码器编址；二总线，功耗低。","套",1,{"$nulls":3},0]
[12,"气体灭火控制器","工作电源：AC220V50/60Hz，电源范围AC187~242V；功耗：监视状态功耗≤30w；备用电源：2个DC12V密封铅电池；气体喷洒输出：DC24V/2A，脉冲方式/持续方式（可转换）控制方式先进、安全性高、控制单个气体保护区、操作方便；对保护区的气体喷洒指示灯、声光报警器、紧急启停按钮等管理、记录火警、故障等信息；可自动启动气体灭火系统","台",1,{"$nulls":3},0]
["不含税小计",{"$nulls":7},{"$f":"SUM(I6:I59)","v":0}]
["增值税",null,"9%增值税",{"$nulls":5},{"$f":"ROUND(I60*0.09,2)","v":0}]
["合价",{"$nulls":7},{"$f":"I61+I60","v":0}]
["注：本不含税综合单价包括但不限于以下内容：人工费、中小型机械费、材料费、材料的检验试验费、材料的保管费、二次搬运费、模板及脚手架、安全文明施工费用、施工人员食宿和交通、施工人员生活用水电费、成品保护费、夜间施工费、冬雨季施工费、垃圾清理和消纳费用、风险费、管理费用、利润、规费及应支付的保险（不仅限于工伤保险和意外伤害险）等除9%增值税外一切费用。"]

{"sheet":"监控中心","index":13,"n_rows":30,"n_cols":10,"rows_kept":30,"merged":[[0,0,0,9],[2,0,3,0],[2,1,3,1],[2,2,3,2],[2,3,3,3],[2,4,3,4],[2,5,3,5],[2,6,2,7],[2,8,3,8],[2,9,3,9],[26,0,26,1],[27,0,27,1],[28,0,28,1],[29,0,29,9]]}
["马家洲红色纪念馆智能化（云数据监控中心）"]
[{"$nulls":8},"价格单位：元"]
["序号","工作内容","任务内容描述\n（包括但不限于以下工作内容）","单位","工程量\n(暂估）","不含税综合\n单价","不含税综合单价组成明细",null,"合价","备注"]
[{"$nulls":6},"劳务费","主材费"]
["机 房 装 饰 系 统 "]
["一","地面工程"]
[1,"全钢防静电架空活动地板","600*600*35","㎡",46,{"$nulls":3},{"$f":"ROUND(E7*F7,2)","v":0}]
["二","门窗工程"]
[1,"甲级钢质防火门","双开、1500*2200；耐火时间≥2H，含闭门器、顺位器、防火门锁等五金配件","套",1,{"$nulls":3},{"$f":"ROUND(E9*F9,2)","v":0}]
["机 房 供 配 电 系 统"]
[1,"UPS输入配电柜","400*800*1200","台",1,{"$nulls":3},0]
[2,"市电节能格栅灯盘","600*600, 3*18W","套",6,{"$nulls":3},0]
[3,"UPS节能格栅灯盘","600*600, 3*18W","套",2,{"$nulls":3},0]
[4,"安全出口指示灯",null,"套",1,{"$nulls":3},0]
[5,"小电器-86型开关（","双联单控板把开关","个",2,{"$nulls":3},0]
[6,"底盒",null,"个",2,{"$nulls":3},0]
[7,"强电插座",null,"个",6,{"$nulls":3},0]
["机 房 防 雷 接 地 系 统"]
[1,"二级电源防雷器","ASD-420/B40-4P","套",1,{"$nulls":3},0]
[2,"三级电源防雷器","ASD-420/B20-4P","套",2,{"$nulls":3},0]
[3,"铜排带","30*3","米",20,{"$nulls":3},0]
[4,"绝缘端子",null,"付",15,{"$nulls":3},0]
["UPS 系 统"]
[1,"不间断电源（ups）","型号：30KVA\n模块化UPS主机30KVA、现配置4个10KVA功率模块，满足3+1冗余，单个模块可独立运行，不依赖集中控制器控制，具备不转旁路热插拔功能。单个机柜可扩充能力不低于40KVA，机柜之间可直接并联。 1、主路输入：输入配线3相+N线+地线,额定输入电压380VAC (线电压),额定频率50/60Hz,输入功率因数>0.99,输入总谐波失真（THDi) <4% （100%线性负载）；\n2、旁路：旁路额定电压380AC(线电压)，旁路额定频率50/60Hz；\n3、输出：额定输出电压380VAC (线电压)，额定输出频率50/60Hz，输出功率因数 1，电压精度±1%，输出动态响应<5%，动态恢复时间≤ 20ms，输出总谐波失真（THDu） ＜1%  （线性负载），<5.5% （非线性负载）\n4、逆变器过载：110%, 1小时； 125%,10分钟； 150%,1分钟；>150%,200ms；\n5、频率精度：50/60Hz±0.02%；跟踪范围：可设置,±0.5Hz～±5Hz, 默认±3Hz，跟踪速率可设置,0.5Hz/S～3Hz/S,默认0.5Hz/S；\n6、电池：电池额定电压±240VDC（可设），充电电压精度1%，充电功率20%*系统功率；\n7、整机效率：主路模式>96%（50%~100%负载），电池模式>96%（50%~100%负载）；\n8、提供厂家实验室CNAS证书、实验室UL证书、TUV证书\n9、系统：显示LED +7寸LCD彩色触摸屏，接口标准:RS232 RS485 USB 可编程干接点，工作温度0 ～ 40 ℃；                                        10、整流器采用IGBT，具有PFC功能，输入功率因数高达0.99，输入谐波电流小于3%，整机效率大于96%；   ","台",1,{"$nulls":3},0]
[2,"后备电池(后备2小时)","1、自放电率低。\n2、容量充足。\n3、使用温度范围宽\n4、密封性能好。\n5、导电性好。\n6、充电接受能力强。\n7、12V100AH","节",45,{"$nulls":3},0]
[3,"电池柜","定制","套",1,{"$nulls":3},0]
["不含税小计",{"$nulls":7},{"$f":"SUM(I6:I26)","v":0}]
["增值税",null,"9%增值税",{"$nulls":5},{"$f":"ROUND(I27*0.09,2)","v":0}]
["合价",{"$nulls":7},{"$f":"I28+I27","v":0}]
["注：本不含税综合单价包括但不限于以下内容：人工费、中小型机械费、材料费、材料的检验试验费、材料的保管费、二次搬运费、模板及脚手架、安全文明施工费用、施工人员食宿和交通、施工人员生活用水电费、成品保护费、夜间施工费、冬雨季施工费、垃圾清理和消纳费用、风险费、管理费用、利润、规费及应支付的保险（不仅限于工伤保险和意外伤害险）等除9%增值税外一切费用。"]

{"sheet":"计算机网络（室外）","index":14,"n_rows":17,"n_cols":10,"rows_kept":17,"merged":[[0,0,0,9],[2,0,3,0],[2,1,3,1],[2,2,3,2],[2,3,3,3],[2,4,3,4],[2,5,3,5],[2,6,2,7],[2,8,3,8],[2,9,3,9],[13,0,13,1],[14,0,14,1],[15,0,15,1],[16,0,16,9]]}
["马家洲景区智能化（计算机网络系统）"]
[{"$nulls":8},"价格单位：元"]
["序号","工作内容","任务内容描述\n（包括但不限于以下工作内容）","单位","工程量\n(暂估）","不含税综合\n单价","不含税综合单价组成明细",null,"合价","备注"]
[{"$nulls":6},"劳务费","主材费"]
[1,"POE接入交换机","型号：S5024PV3-EI-HPWR\n技术参数要求：\n1.交换容量≥336Gbps，转发性能≥42Mpps；\n2.固化10/100/1000M以太网端口≥24，固化SFP非复用口≥4个；\n3.要求所投产品支持防雷等级≥6KV\n4.投标产品支持单端口POE输出功率≥60W\n5.★投标产品可通过同一品牌的前端适配器实现常见的AC 24V、DC 12V等规格的非POE终端远程供电，提供所投产品官网截图（含链接）\n6.★投标产品支持面板自带一键查看POE供电状态功能，提供所投产品官网截图（含链接）","台",3,{"$nulls":3},{"$f":"ROUND(E5*F5,2)","v":0}]
[2,"千兆单模光模块","型号：SFP-GE-LX-SM1310\n1000BASE-LX mini GBIC转换模块（1310nm），10km","台",6,{"$nulls":3},{"$f":"ROUND(E6*F6,2)","v":0}]
[3,"AC控制器","型号：WX2540H+LIS-16-BE+LIS-8-BE\n技术参数要求：\n1.★默认可管理AP数≥32个，最大可支持管理≥200个AP ，802.11转发性能≥8Gbps，提供官网截图\n2.★单台设备最大可配置AP数目≥2K，单台设备最大支持的在线无线用户数目≥6K，提供官网截图\n3.要求设备可配置AP的本地数据转发技术模式\n4.★支持本地认证功能，无需通过外置Protal服务器和Radius服务器认证\n5.支持根据用户需求定制化设计认证页面及用户自定义设计，保留测试权利\n6.支持对非法无线接入点进行探测，并对非法AP进行屏蔽\n7.支持手机短信获取WLAN接入密码实现安全认证\n8.支持访客通过二维码授权的方式接入无线网络 ,保留测试权利\n9.支持实时频谱防护,可视化射频干扰源对无线局域网的性能的影响\n★硬件配置要求：\n1.配置千兆电口≥8，千兆光口≥2；\n2.配置足够数量的AP管理许可","台",1,{"$nulls":3},0]
[4,"放装式AP","型号：APWA4320ACN-E-FIT\n1.支持标准的802.11ac协议,采用双路双频设计，可同时工作在802.11a/n/ac wave2和802.11b/g/n模式\n2.支持2条空间流,2.4单频最大接入速率≥300Mbps,5.8G单频最大接入速率≥867Mbps，整机最大接入速率≥1167Mbps\n3.提供1个console管理口（RJ45）,1个10/100/1000Base-T以太网上联接口   \n4.支持物联网模块收发单元，支持蓝牙、RFID、zigbee等多种协议；内置2个物联网扩展槽，可扩展更多物联网协议模块\n5.无线网优工具使用广泛， 应用成熟。网优系统接入 AP 数超过 100 万台。提供无线优化工具运营截图并加盖原厂商公章证明\n6.为确保Wi-Fi检测工具的成熟度，APP装机量大于30万，日活跃大于3000，提供截图证明","台",24,{"$nulls":3},0]
[5,"室外立杆","5米不锈钢立杆，含地笼和接地装置（定制）","根",12,{"$nulls":3},0]
[6,"四对六类非屏蔽双绞线","型号：KEG·X6P\n1.名称 6类非屏蔽网线；\n2.规格型号线缆内部带十字线芯；符合UL94V-0等级；符合TIA/EIA 568B、EN50173-1和ISO 11801：2002\n3.敷设方式 综合.","米",800,{"$nulls":3},0]
[7,"12芯室外单模光缆","1.名称 ：12芯室外单模光纤；光纤芯数：4芯\n2.规格：符合规范要求；\n3.敷设方式 综合","米",1200,{"$nulls":3},0]
[8,"光纤熔接盒","国标","只",12,{"$nulls":3},0]
[9,"电源箱","定制","台",12,{"$nulls":3},0]
["不含税小计",{"$nulls":7},{"$f":"SUM(I5:I13)","v":0}]
["增值税",null,"9%增值税",{"$nulls":5},{"$f":"ROUND(I14*0.09,2)","v":0}]
["合价",{"$nulls":7},{"$f":"I15+I14","v":0}]
["注：本不含税综合单价包括但不限于以下内容：人工费、中小型机械费、材料费、材料的检验试验费、材料的保管费、二次搬运费、模板及脚手架、安全文明施工费用、施工人员食宿和交通、施工人员生活用水电费、成品保护费、夜间施工费、冬雨季施工费、垃圾清理和消纳费用、风险费、管理费用、利润、规费及应支付的保险（不仅限于工伤保险和意外伤害险）等除9%增值税外一切费用。"]

{"sheet":"室外广播","index":15,"n_rows":13,"n_cols":10,"rows_kept":13,"merged":[[0,0,0,9],[2,0,3,0],[2,1,3,1],[2,2,3,2],[2,3,3,3],[2,4,3,4],[2,5,3,5],[2,6,2,7],[2,8,3,8],[2,9,3,9],[9,0,9,1],[10,0,10,1],[11,0,11,1],[12,0,12,9]]}
["马家洲景区智能化（室外公共广播及背景音乐系统报价）"]
[{"$nulls":8},"价格单位：元"]
["序号","工作内容","任务内容描述\n（包括但不限于以下工作内容）","单位","工程量\n(暂估）","不含税综合\n单价","不含税综合单价组成明细",null,"合价","备注"]
[{"$nulls":6},"劳务费","主材费"]
[1,"IP网络解码终端","型号：RT-8006\n1. 采用3.5英寸全彩色触屏显示屏，全新界面采用字和图形结合的菜单，操作简单易懂；\n2. 采用触屏控制，工业级触摸操作方式，触控手感非常灵敏，图文显示界面，操作状态一目了然；\n3. 支持扩展U盘功能：终端可直接插入U盘，可自由更换数字音频文件，免拆装设备，通过触屏可对U盘文件进行本地播放实现本地扩声（选配）；\n4. 完成网络音频流的同步接收和解码，采样音频硬件编码，具有单向接收及主控单向呼叫功能；\n5. TCP/IP高品质的数字音频传输，音质达到CD级（位速128Kbps）并能播放高音质发烧级别的音频文件（位速320Kbps）；\n6. 支持点播服务器节目内容，实现本地播放；操作简单快捷；4路音频信号输出接口，可同时外接4台功率放大器，输出模拟音频至功放，4路外控电源（内置650W大功率智能电源），定时控制功放电源打开；\n7. 内置高低音调节功能，可对整个设备的高低音进行调节；具有多个等级优先灵敏度调节功能，可自由选择信号优先输入，满足不同的场合；\n8. 无网络信号时自动断开功放电源，进入待机状态，具有编程打开和音频触发打开电源功能，进入待机时间为3-5分钟，避免因音频信号的时间间隔导致播放断续；\n9. 1路线路（AUX）和1路话筒（MIC）输入接口，具有独立的音量和高低音调节，并支持断网寻呼功能，带自动触发功能，当有音频信号进来时候自动触发打开设备供电；\n10. 采用固定静态IP地址，当网络发生改变时地址不会丢失，工作稳定；支持多达1000级以及以上自定义音频优先级默音控制；\n11. 支持安卓手机客户端WIFI点播，支持红外接收，操作遥控器可任意点播节目；\n12. 支持文字广播：可直接将文字转换为音频文件，通过软件实现对终端的播放；\n13. 支持扩展PSTN电话广播，支持短信语音广播；\n14. 提供自动/手动强制电源开关按钮；远程网络信号优先，自动强插，可内置网络交换机模块。","台",5,{"$nulls":3},{"$f":"ROUND(E5*F5,2)","v":0}]
[2,"合并式广播功放(360W)","型号：TS-360\n1. 带前置及功率放大，报警音频信号优先输入功能；\n2. 带电平指示功能，自动检测输入信号强弱；\n3. 2路线路输入AUX1，AUX2，1路辅助输出，3路话筒输入，第1路话筒MIC1具强切默音功能，具有最高优先权；\n4. 1路报警强插音源输入，报警输入EMC IN具有第二高优先权，当有报警音频输入时自动优先播放报警音乐；\n5. 通道优先功能：MIC1>EMC IN >MIC2，AUX1，AUX2，MIC2 LINEIN，MIC3 LINE IN ，70V、100V定压输出，4Ω-16Ω定阻输出；备有链接口，便于链接下一台功放，级联不失真；\n6. 设有总音量调节旋钮，可控制机器总音量输出；各输入通道独立音量控制，具高、低音音调控制；\n7. 由前往后强制风冷，50℃时加速抽风，90℃强制保护并告警；\n8. 具有短路、过载、过热、饱和失真、直流输出等保护功能，保护的同时设备自动断开输出；独立的启动保护线路，避免开机瞬间启动电流对设备的损害；\n9. 带压限电路，限制输入信号过大，高效放大电路，输出功率强劲有力，独立的静噪音线路处理。\n技术参数：\n输出功率：360W；\n输出电压：70V、100V or 4-16Ω；\n输入灵敏度：MINC:600Ω 300mv AUX:15KΩ不平衡；\n输出灵敏度：600Ω 1V （0dB）；\n信噪比：MIC：＞70 AUX：＞80；\n频率响应：80Hz-18KHz；\n总谐波失真：<0.8%；\n产品尺寸（mm）： 480×90×435。","台",5,{"$nulls":3},{"$f":"ROUND(E6*F6,2)","v":0}]
[3,"草坪音箱（石头型）","型号：TQ-802A\n1. 额定功率:20W；\n2. 最大功率:30W；\n3. 输入电压70V/100V；\n4. 灵敏度:98dB；\n5. 频率响应:80Hz-16KHz；\n6. 最大声压级:97dB；\n7. 尺寸:320×270×270mm；\n8. 安装方式:膨胀螺丝；\n9. 单元:6(1/2)\"防水同轴×1；\n10. 防护等级:IP66；\n11. 材料:有机玻璃。","只",21,{"$nulls":3},{"$f":"ROUND(E7*F7,2)","v":0}]
[4,"草坪音箱基础","定制","只",21,{"$nulls":3},{"$f":"ROUND(E8*F8,2)","v":0}]
[5,"广播线防水ZRRVS2*1.5","ZRRVS2*1.5防水型","米",1800,{"$nulls":3},{"$f":"ROUND(E9*F9,2)","v":0}]
["不含税小计",{"$nulls":7},{"$f":"SUM(I5:I8)","v":0}]
["增值税",null,"9%增值税",{"$nulls":5},{"$f":"ROUND(I10*0.09,2)","v":0}]
["合价",{"$nulls":7},{"$f":"I11+I10","v":0}]
["注：本不含税综合单价包括但不限于以下内容：人工费、中小型机械费、材料费、材料的检验试验费、材料的保管费、二次搬运费、模板及脚手架、安全文明施工费用、施工人员食宿和交通、施工人员生活用水电费、成品保护费、夜间施工费、冬雨季施工费、垃圾清理和消纳费用、风险费、管理费用、利润、规费及应支付的保险（不仅限于工伤保险和意外伤害险）等除9%增值税外一切费用。"]

{"sheet":"室外监控","index":16,"n_rows":21,"n_cols":10,"rows_kept":21,"merged":[[0,0,0,9],[2,0,3,0],[2,1,3,1],[2,2,3,2],[2,3,3,3],[2,4,3,4],[2,5,3,5],[2,6,2,7],[2,8,3,8],[2,9,3,9],[17,0,17,1],[18,0,18,1],[19,0,19,1],[20,0,20,9]]}
["马家洲景区智能化（室外视频监控系统）"]
[{"$nulls":8},"价格单位：元"]
["序号","工作内容","任务内容描述\n（包括但不限于以下工作内容）","单位","工程量\n(暂估）","不含税综合\n单价","不含税综合单价组成明细",null,"合价","备注"]
[{"$nulls":6},"劳务费","主材费"]
[1,"500万高速球形摄像机","型号：DS-2DE753NJXY-WJA\n1.使用1/1.8英寸500万CMOS传感器；           \n2.最低照度彩色0.05Lux@F1.6；黑白0.01Lux@F1.6；0 Lux with IR；\n3.焦距5.9mm-177mm；视场角69.5°(w)～2.7°(t)；                    \n4.支持30X光学变倍；光圈F1.5-F4.0；\n5.视频编码方式265/H.265/H.264/M-JPEG，主码流最高分辨率2592*1944@18fps；\n6.红外补光距离450米；              \n7.电源 AC24V 3A，独立外接电源适配器，最大功率39W；\n8.音频接口支持1路Line/Mic音频输入、1路音频输出；报警1路输入，1路输出；支持TF卡前端存储，最高128G；\n9.防护等级IP66、TVS 6000V 防雷、防浪涌、防突波；\n10.支持背光补偿和宽动态；\n11.支持多达500个预置位；\n12.支持8条自动扫描路径；\n13.工作温度－40℃～70℃，工作湿度0～95%（无凝结）；\n14.支持智能分析： 8种行为分析（周界、单绊线、双绊线、徘徊、快速移动、停车、物品遗留、丢失）、人群聚集、移动侦测、音视频诊断\n★15.信噪比≥61dB，网络延时不大于100ms，动态范围不小于106dB，照度适应范围不小于140dB，宽动态能力综合得分不小于135（提供公安部型式检验报告加盖厂商公章证明）\n★16.具备较强的网络自适应能力，在丢包率为30%的网络环境下，仍可正常显示监视画面，具备较好的电源适应性，电压在AC24V±50%或DC24V±50%范围内变化时，设备可正常工作（提供公安部型式检验报告加盖厂商公章证明）","台",10,{"$nulls":3},{"$f":"ROUND(E5*F5,2)","v":0}]
[2,"200万高清室外枪式摄像机","型号：DS-2CD2T2NJXY-WJ\n1.具有200万像素 CMOS传感器，红外补光距离不小于110米。\n2.★内置GPU芯片，内置红外与白光补光灯。（公安部检验报告证明）\n3.★支持白光报警功能，当报警产生时，可触发联动声音警报和白光闪烁，白天或夜晚均可输出彩色视频图像。（公安部检验报告证明）\n4.最低照度彩色：0.001 lx，黑白0.0001lx。在1920x1080 @ 25fps下，清晰度不小于1100TVL。\n5.支持H.264、H.265、MJPEG视频编码格式，其中H.264支持Baseline/Main/High Profile。\n6.信噪比不小于59dB，需具不小于105dB宽动态。\n7.摄像机能够在-45~70摄氏度，湿度小于93%环境下稳定工作，不低于IP67防尘防水等级。\n8.同一静止场景相同图像质量下，设备在H.265编码方式时，开启智能编码功能和不开启智能编码相比，码率节约1/2。","台",46,{"$nulls":3},{"$f":"ROUND(E6*F6,2)","v":0}]
[3,"球机电源","DS-2FA1210-DC-CH","个",10,{"$nulls":3},0]
[4,"快球支架","型号： DS-1602ZJ\n吸顶安装","个",10,{"$nulls":3},0]
[5,"枪机支架","壁挂安装（定制）","个",46,{"$nulls":3},0]
[6,"室外立杆","5米不锈钢立杆，含地笼和接地装置","根",34,{"$nulls":3},0]
[7,"监控室外光交箱","1.名称：室外防水光交箱；\n2.400宽*600高*300厚mm, 采用1.2mm厚Q235工程级冷轧碳钢板，经酸洗淋化防腐蚀防锈处理，永不生锈！标准风扇孔无需打孔，透风孔增加网纱防虫设计，防水箱配置10A漏保空开和10位电源插座各一只；\n3.基础制作安装。","台",11,{"$nulls":3},0]
[8,"1U24LC双工光纤配线架","1.名称 24口光纤配线架\n2.含模块等配件，满配","只",11,{"$nulls":3},0]
[9,"24口RJ45配线架","1.名称 六类网络配线架                             2.规格 24位 满配","只",11,{"$nulls":3},0]
[11,"四对六类非屏蔽双绞线","1.名称 6类非屏蔽网线；\n2.规格型号线缆内部带十字线芯；符合UL94V-0等级；符合TIA/EIA 568B、EN50173-1和ISO 11801：2002\n3.敷设方式 综合.","米",3500,{"$nulls":3},0]
[12,"主干电源线","1.名称 电源线\n2.配线形式 综合\n3.型号：BV3*2.5","米",2600,{"$nulls":3},0]
[13,"电源线","1.名称 电源线\n2.配线形式 综合\n3.型号：RVV2*1.0，2.防水","米",1400,{"$nulls":3},0]
[14,"安全防范分系统调试",null,"项",1,{"$nulls":3},0]
["不含税小计",{"$nulls":7},{"$f":"SUM(I5:I17)","v":0}]
["增值税",null,"9%增值税",{"$nulls":5},{"$f":"ROUND(I18*0.09,2)","v":0}]
["合价",{"$nulls":7},{"$f":"I19+I18","v":0}]
["注：本不含税综合单价包括但不限于以下内容：人工费、中小型机械费、材料费、材料的检验试验费、材料的保管费、二次搬运费、模板及脚手架、安全文明施工费用、施工人员食宿和交通、施工人员生活用水电费、成品保护费、夜间施工费、冬雨季施工费、垃圾清理和消纳费用、风险费、管理费用、利润、规费及应支付的保险（不仅限于工伤保险和意外伤害险）等除9%增值税外一切费用。"]

{"sheet":"室外信息发布","index":17,"n_rows":14,"n_cols":10,"rows_kept":14,"merged":[[0,0,0,9],[2,0,3,0],[2,1,3,1],[2,2,3,2],[2,3,3,3],[2,4,3,4],[2,5,3,5],[2,6,2,7],[2,8,3,8],[2,9,3,9],[9,0,9,1],[10,0,10,1],[11,0,11,1],[12,0,12,9]]}
["马家洲景区智能化（信息导引及发布系统）"]
[{"$nulls":8},"价格单位：元"]
["序号","工作内容","任务内容描述\n（包括但不限于以下工作内容）","单位","工程量\n(暂估）","不含税综合\n单价","不含税综合单价组成明细",null,"合价","备注"]
[{"$nulls":6},"劳务费","主材费"]
[1,"室外43寸竖屏，立杆安装","型号：LFT420M-H80S\n屏幕尺寸 43英寸 屏幕类别 A+级屏 屏幕分辨率 全高清（1920x1080） 亮度1500-2000流明 屏幕比例 16:9 刷屏率 60Hz","台",14,{"$nulls":3},{"$f":"ROUND(E5*F5,2)","v":0}]
[2,"高清播放器","多媒体播放器，顶级设计、高温、高湿下稳定运行、全高清播放、工业级嵌入式结构,全铝机身外框等.   工业处理器：双核1.8Hz低功耗CPU；  工业主板：X86工控平台 ， 硬盘容量: 32G工业固态硬盘，工业缓存：DDR 2GB RAM；网络接口：集成100\\1000M以太网卡                              ","台",1,{"$nulls":3},{"$f":"ROUND(E6*F6,2)","v":0}]
[3,"室外信息发布LED屏","型号：LFT-SC80\nP8全彩LED发布大屏，含支架，控制电脑、发送卡等设备，壁挂安装","平方米",12,{"$nulls":3},{"$f":"ROUND(E7*F7,2)","v":0}]
[4,"电源箱","定制","台",12,{"$nulls":3},{"$f":"ROUND(E8*F8,2)","v":0}]
[5,"四对六类非屏蔽双绞线","1.名称 6类非屏蔽网线；\n2.规格型号线缆内部带十字线芯；符合UL94V-0等级；符合TIA/EIA 568B、EN50173-1和ISO 11801：2002\n3.敷设方式 综合.","米",800,{"$nulls":3},{"$f":"ROUND(E9*F9,2)","v":0}]
["不含税小计",{"$nulls":7},{"$f":"SUM(I5:I9)","v":0}]
["增值税",null,"9%增值税",{"$nulls":5},{"$f":"ROUND(I10*0.09,2)","v":0}]
["合价",{"$nulls":7},{"$f":"I11+I10","v":0}]
["注：本不含税综合单价包括但不限于以下内容：人工费、中小型机械费、材料费、材料的检验试验费、材料的保管费、二次搬运费、模板及脚手架、安全文明施工费用、施工人员食宿和交通、施工人员生活用水电费、成品保护费、夜间施工费、冬雨季施工费、垃圾清理和消纳费用、风险费、管理费用、利润、规费及应支付的保险（不仅限于工伤保险和意外伤害险）等除9%增值税外一切费用。"]
[" "]

{"sheet":"综合管路","index":18,"n_rows":15,"n_cols":10,"rows_kept":15,"merged":[[0,0,0,5],[2,0,3,0],[2,1,3,1],[2,2,3,2],[2,3,3,3],[2,4,3,4],[2,5,3,5],[2,6,2,7],[2,8,3,8],[2,9,3,9],[9,0,9,1],[10,0,10,1],[11,0,11,1],[12,0,12,9]]}
["马家洲景区智能化（综合管路子系统）"]
[{"$nulls":7},"价格单位：元"]
["序号","工作内容","任务内容描述\n（包括但不限于以下工作内容）","单位","工程量\n(暂估）","不含税综合\n单价","不含税综合单价组成明细",null,"合价","备注"]
[{"$nulls":6},"劳务费","主材费"]
[1,"PE75管","型号：PE100\n国产优质","米",1600,{"$nulls":3},{"$f":"E5*F5","v":0}]
[2,"SC100管","型号：SC100\n国产优质","米",100,{"$nulls":3},{"$f":"E6*F6","v":0}]
[3,"PE40管","型号：PE50\n国产优质","米",1600,{"$nulls":3},0]
[4,"PE32管","型号：SC50\n国产优质","米",500,{"$nulls":3},0]
[5,"小号弱电井（含井盖）","型号：W*H*D：600mm*600mm*600mm\n国产优质","个",55,{"$nulls":3},0]
["不含税小计",{"$nulls":7},{"$f":"SUM(I5:I9)","v":0}]
["增值税",null,"9%增值税",{"$nulls":5},{"$f":"ROUND(I10*0.09,2)","v":0}]
["合价",{"$nulls":7},{"$f":"I11+I10","v":0}]
["注：本不含税综合单价包括但不限于以下内容：人工费、中小型机械费、材料费、材料的检验试验费、材料的保管费、二次搬运费、模板及脚手架、安全文明施工费用、施工人员食宿和交通、施工人员生活用水电费、成品保护费、夜间施工费、冬雨季施工费、垃圾清理和消纳费用、风险费、管理费用、利润、规费及应支付的保险（不仅限于工伤保险和意外伤害险）等除9%增值税外一切费用。"]
[" "]
[" "]